Workbook

Sheet Metodologija
E8: Podaci o visinama taksi i naknada koje nadležni organi naplaćuju u objedinjenoj proceduri prikupljani su putem ankete nadležnih organa u okviru projekta koji je podržao USAID Projekat za bolje uslove poslovanja u Srbiji. Upitnik je sadržao sve podatke potrebne podnosiocu zahteva za popunjavanje uplatnica i uplatu potrebnih taksi/naknada za dva tipa objekata: Tip objekta 1: Poslovni objekat u najatraktivnijoj zoni lokalne samouprave, površine 1000m2, prizemlje i tri sprata. Parcela gde će se graditi ima prisupni put i svu potrebnu infrastrukturu, upisana je u katastar nepokretnosti i na njoj nije bilo prethodnih građevinskih radova. Tip objekta 2: Skladište, objekat pomoćne namene, u trećoj najatraktivnijoj zoni lokalne samouprave, površine 1000m2, dva sprata iznad zemlje. Skladište neće skladištiti robu koja zahteva posebne uslove skladištenja poput hrane, lekova itd. Parcela gde će se graditi skladište ima prisupni put i svu potrebnu infrastrukturu, upisana je u katastar nepokretnosti i na njoj nije bilo prethodnih građevinskih radova. Iznosi taksi i naknada navedeni su u dinarima. Iznosi taksi i naknada odnose se na pravna lica. Tabele NE SADRŽE visinu takse za centralnu evidenciju objedinjene procedure/CEOP, s obzirom na to da je visina ove takse javno dostupna na sajtu Agencije za privredne registre. Tabele NE SADRŽE visinu taksi i naknada koje naplaćuju imaoci javnih oblašćenja za izdavanje uslova u objedinjenoj proceduri. Za LS koje nisu dostavile popunjene upitnike, podaci su preuzeti sa objava na centralnom informacionom sistemu. Ove LS u svom nazivu imaju znak "!". Za više informacija možete se obratiti na mejl info@gradjevinskedozvole.rs

Sheet Grafički prikaz
D2: Na grafikonima su prikazani ukupni iznosi taksi i naknada koje nadležni organi naplaćuju u objedinjenoj proceduri za određene tipove zahteva. Podaci o lokalnim samoupravama koje pored svog naziva imaju znak uzvika (!) prikupljeni su sa objava iz centralnog informacionog sistema te nisu uporedivi sa ostalim podacima. Napominjemo da su navedeni podaci informativnog karaktera i da je neophodno obratiti se nadležnom organu za traženje tačnih informacija za konkretan zahtev.

Sheet Iznosi taksi i naknada u OP
D2: U tabeli su prikazani podaci o visinama taksi i naknada koje nadležne lokalne samouprave naplaćuju u objedinjenoj proceduri u zavisnosti od vrste podnetog zahteva. Iznos taksi i naknada odnosi se na dva tipa objekta od po 1000 kvadrata. Detaljniji opis tipova objekata možete naći u delu "Metodologija". Nadležne organe, tj. lokalne samouprave, možete filtrirati koristeći slajder sa leve strane tabele. Podaci o lokalnim samoupravama koje pored svog naziva imaju znak uzvika (!) prikupljeni su sa objava iz centralnog informacionog sistema te nisu uporedivi sa ostalim podacima. Napominjemo da su navedeni podaci informativnog karaktera i da je neophodno obratiti se nadležnom organu za traženje tačnih informacija za konkretan zahtev.
H7: Lokalna samouprava | I7: Iznos takse/naknade Tip objekta 1 | J7: Iznos takse/naknade Tip objekta 2 | K7: Broj taksi/naknada u procentualnom iznosu
H8: Grad Beograd | I8: 36908 | J8: 36908 | K8: 1
H9: Grad Čačak | I9: 4600 | J9: 4600 | K9: 1
H10: Grad Ćuprija ! | I10: 4210
H11: Grad Jagodina | I11: 37270 | J11: 30670 | K11: 1
H12: Grad Kikinda | I12: 57510 | J12: 102510 | K12: 1
H13: Grad Kragujevac | I13: 71490 | J13: 49430 | K13: 1
H14: Dostavljanje tehničke dokumentacije | I14: 310 | J14: 310
H15: Republička administrativna taksa | I15: 310 | J15: 310
H16: Građevinska dozvola | I16: 1110 | J16: 1110
H17: Republička administrativna taksa | I17: 1110 | J17: 1110
H18: Lokacijski uslovi | I18: 66520 | J18: 44460
H19: Lokalna administrativna taksa | I19: 66210 | J19: 44150
H20: Republička administrativna taksa | I20: 310 | J20: 310
H21: Prijava radova | I21: 310 | J21: 310
H22: Republička administrativna taksa | I22: 310 | J22: 310
H23: Prijava završetka izrade temelja i završetka objekta u konstruktivnom smislu | I23: 1910 | J23: 1910
H24: Republička administrativna taksa | I24: 1910 | J24: 1910
H25: Priključenje objekta na infrastrukturu | I25: 310 | J25: 310
H26: Republička administrativna taksa | I26: 310 | J26: 310
H27: Rešenje o odobrenju izvođenja radova po članu 145 Zakona | I27: 710 | J27: 710
H28: Republička administrativna taksa | I28: 710 | J28: 710
H29: Upotrebna dozvola | I29: 310 | J29: 310 | K29: 1
H30: Republička administrativna taksa | I30: 310 | J30: 310 | K30: 1
H31: Grad Kraljevo ! | I31: 1070
H32: Grad Kruševac | I32: 10720 | J32: 10720 | K32: 1
H33: Grad Leskovac | I33: 117680 | J33: 85680 | K33: 1
H34: Grad Loznica | I34: 24200 | J34: 24200
H35: Grad Negotin ! | I35: 1070
H36: Grad Niš | I36: 35610 | J36: 28610 | K36: 1
H37: Grad Novi Pazar | I37: 24980 | J37: 24980 | K37: 1
H38: Grad Novi Sad | I38: 14750 | J38: 8700 | K38: 4
H39: Grad Pančevo | I39: 19077 | J39: 19077 | K39: 1
H40: Grad Pirot | I40: 92930 | J40: 92160 | K40: 1
H41: Grad Požarevac | I41: 40600 | J41: 40600
H42: Grad Šabac | I42: 22420 | J42: 22420 | K42: 1
H43: Grad Smederevo | I43: 13980 | J43: 13980 | K43: 1
H44: Grad Sombor | I44: 5710 | J44: 5710 | K44: 1
H45: Grad Sremska Mitrovica | I45: 57610 | J45: 57610 | K45: 1
H46: Grad Subotica | I46: 6633 | J46: 6633 | K46: 1
H47: Grad Užice | I47: 11800 | J47: 11800 | K47: 1
H48: Grad Valjevo | I48: 6067 | J48: 6067
H49: Grad Vranje ! | I49: 2445
H50: Grad Vršac | I50: 37880 | J50: 37880 | K50: 1
H51: Grad Zaječar | I51: 26455 | J51: 26455
H52: Grad Zrenjanin | I52: 46910 | J52: 46910 | K52: 1
H53: Gradska opština Barajevo | I53: 20486 | J53: 20486 | K53: 1
H54: Gradska opština Čukarica | I54: 5800 | J54: 5800 | K54: 1
H55: Gradska opština Grocka ! | I55: 1110
H56: Gradska opština Lazarevac | I56: 20246 | J56: 20246 | K56: 1
H57: Gradska opština Mladenovac ! | I57: 1410
H58: Gradska opština Novi Beograd | I58: 6800 | J58: 6800 | K58: 1
H59: Gradska opština Obrenovac | I59: 19686 | J59: 19686 | K59: 2
H60: Gradska opština Palilula | I60: 3180 | J60: 2780 | K60: 1
H61: Gradska opština Rakovica ! | I61: 1370
H62: Gradska opština Savski Venac | I62: 3460 | J62: 2660 | K62: 1
H63: Gradska opština Sopot | I63: 17906 | J63: 17906 | K63: 1
H64: Gradska opština Stari Grad ! | I64: 1110
H65: Gradska opština Surčin ! | I65: 2261
H66: Gradska opština Voždovac ! | I66: 800
H67: Gradska opština Vračar | I67: 3300 | J67: 3300 | K67: 1
H68: Gradska opština Zemun | I68: 5590 | J68: 5590 | K68: 1
H69: Gradska opština Zvezdara | I69: 5590 | J69: 5590 | K69: 1
H70: Opština Ada ! | I70: 1110
H71: Opština Aleksandrovac | I71: 17880 | J71: 19880 | K71: 1
H72: Opština Aleksinac ! | I72: 770
H73: Opština Alibunar | I73: 9370 | J73: 8310 | K73: 1
H74: Opština Apatin ! | I74: 1110
H75: Opština Aranđelovac | I75: 19381.5 | J75: 17995 | K75: 1
H76: Opština Arilje | I76: 10140 | J76: 10140 | K76: 1
H77: Opština Babušnica | I77: 9810 | J77: 9810 | K77: 1
H78: Opština Bač ! | I78: 1080
H79: Opština Bačka Palanka | I79: 12670 | J79: 12670 | K79: 1
H80: Opština Bačka Topola | I80: 3800 | J80: 4490
H81: Opština Bački Petrovac ! | I81: 1110
H82: Opština Bajina Bašta ! | I82: 350
H83: Opština Batočina | I83: 43280 | J83: 43280 | K83: 1
H84: Opština Bečej | I84: 18180 | J84: 18180 | K84: 3
H85: Opština Bela Crkva ! | I85: 1080
H86: Opština Bela Palanka | I86: 68640 | J86: 68640 | K86: 1
H87: Opština Beočin | I87: 3420 | J87: 3420 | K87: 1
H88: Opština Blace | I88: 120660 | J88: 119480 | K88: 1
H89: Opština Bogatić | I89: 23020 | J89: 23020 | K89: 1
H90: Opština Bojnik ! | I90: 300
H91: Opština Boljevac | I91: 17230 | J91: 11230
H92: Opština Bor ! | I92: 1070
H93: Opština Bosilegrad | I93: 17330 | J93: 17330 | K93: 1
H94: Opština Brus | I94: 24930 | J94: 24930
H95: Opština Bujanovac | I95: 122380 | J95: 89680 | K95: 1
H96: Opština Čajetina | I96: 149620 | J96: 149620 | K96: 1
H97: Opština Ćićevac | I97: 21930 | J97: 21930 | K97: 1
H98: Opština Čoka | I98: 2400 | J98: 2400 | K98: 3
H99: Opština Crna Trava | I99: 33770 | J99: 33770 | K99: 1
H100: Opština Despotovac | I100: 17820 | J100: 17820
H101: Opština Dimitrovgrad | I101: 7680 | J101: 7680 | K101: 1
H102: Opština Doljevac | I102: 4600 | J102: 4600
H103: Opština Gadžin Han | I103: 16540 | J103: 16540
H104: Opština Golubac | I104: 27220 | J104: 37220 | K104: 1
H105: Opština Gornji Milanovac | I105: 139650 | J105: 95650 | K105: 1
H106: Opština Inđija ! | I106: 10230
H107: Opština Irig | I107: 10410 | J107: 10410
H108: Opština Ivanjica | I108: 42240 | J108: 42240 | K108: 1
H109: Opština Kanjiža ! | I109: 1100
H110: Opština Kladovo ! | I110: 1420
H111: Opština Knić | I111: 7310 | J111: 7310 | K111: 1
H112: Opština Knjaževac | I112: 15841 | J112: 15841 | K112: 2
H113: Opština Koceljeva | I113: 18260 | J113: 12590 | K113: 1
H114: Opština Kosjerić | I114: 89580 | J114: 53580
H115: Opština Kovačica | I115: 27080 | J115: 20880 | K115: 1
H116: Opština Kovin | I116: 40858 | J116: 40858
H117: Opština Krupanj | I117: 21400 | J117: 21400 | K117: 1
H118: Opština Kučevo | I118: 34120 | J118: 15920
H119: Opština Kula | I119: 9130 | J119: 7630
H120: Opština Kuršumlija | I120: 68380 | J120: 38380 | K120: 1
H121: Opština Lajkovac | I121: 32813 | J121: 32687 | K121: 1
H122: Opština Lapovo ! | I122: 19070
H123: Opština Lebane | I123: 22090 | J123: 22090 | K123: 1
H124: Opština Ljig | I124: 51640 | J124: 31640 | K124: 1
H125: Opština Ljubovija ! | I125: 1070
H126: Opština Lučani | I126: 17540 | J126: 14540 | K126: 1
H127: Opština Majdanpek ! | I127: 385
H128: Opština Mali Iđoš ! | I128: 830
H129: Opština Mali Zvornik ! | I129: 1100
H130: Opština Malo Crniće | I130: 25470 | J130: 25470
H131: Opština Medveđa | I131: 15500 | J131: 15500 | K131: 1
H132: Opština Merošina | I132: 11670 | J132: 7910 | K132: 2
H133: Opština Mionica | I133: 23460 | J133: 16100 | K133: 1
H134: Opština Nova Crnja | I134: 4080 | J134: 4080 | K134: 1
H135: Opština Nova Varoš | I135: 18990 | J135: 13690
H136: Opština Novi Bečej | I136: 52190 | J136: 18590 | K136: 1
H137: Opština Novi Kneževac | I137: 13740 | J137: 8740
H138: Opština Odžaci | I138: 16310 | J138: 16310 | K138: 2
H139: Opština Opovo | I139: 12770 | J139: 12770 | K139: 2
H140: Opština Osečina ! | I140: 770
H141: Opština Paraćin ! | I141: 1110
H142: Opština Pećinci | I142: 36256 | J142: 36256 | K142: 1
H143: Opština Petrovac na Mlavi | I143: 15050 | J143: 15050 | K143: 1
H144: Opština Plandište | I144: 7810 | J144: 5810 | K144: 1
H145: Opština Požega | I145: 46080 | J145: 46080 | K145: 1
H146: Opština Preševo | I146: 63360 | J146: 63360 | K146: 1
H147: Opština Priboj | I147: 23680 | J147: 23680 | K147: 1
H148: Opština Prijepolje | I148: 2480 | J148: 2480
H149: Opština Prokuplje ! | I149: 5710
H150: Opština Rača | I150: 47252.7 | J150: 47252.7 | K150: 1
H151: Opština Raška ! | I151: 800
H152: Opština Ražanj | I152: 20240 | J152: 34240 | K152: 1
H153: Opština Rekovac | I153: 21580 | J153: 21580
H154: Opština Ruma ! | I154: 1110
H155: Opština Sečanj | I155: 8640 | J155: 8640 | K155: 1
H156: Opština Senta | I156: 121301 | J156: 83801 | K156: 3
H157: Opština Šid | I157: 47240 | J157: 47240 | K157: 1
H158: Opština Sjenica | I158: 28760 | J158: 24760 | K158: 1
H159: Opština Smederevska Palanka ! | I159: 1070
H160: Opština Sokobanja | I160: 15208 | J160: 15208 | K160: 1
H161: Opština Srbobran | I161: 14881 | J161: 19956 | K161: 1
H162: Opština Sremski Karlovci | I162: 21680 | J162: 21680 | K162: 1
H163: Opština Stara Pazova | I163: 14300 | J163: 15300 | K163: 2
H164: Opština Surdulica | I164: 33360 | J164: 33360 | K164: 1
H165: Opština Svilajnac ! | I165: 1110
H166: Opština Svrljig | I166: 6600 | J166: 6600 | K166: 3
H167: Opština Temerin | I167: 66750 | J167: 66750 | K167: 1
H168: Opština Titel | I168: 31220 | J168: 16220 | K168: 1
H169: Opština Topola ! | I169: 1110
H170: Opština Trgovište ! | I170: 770
H171: Opština Trstenik | I171: 20480 | J171: 20480 | K171: 1
H172: Opština Tutin ! | I172: 1110
H173: Opština Ub ! | I173: 1110
H174: Opština Varvarin ! | I174: 300
H175: Opština Velika Plana | I175: 5060 | J175: 5060 | K175: 1
H176: Opština Veliko Gradište ! | I176: 1070
H177: Opština Vladičin Han | I177: 12380 | J177: 12380 | K177: 1
H178: Opština Vladimirci ! | I178: 19564
H179: Opština Vlasotince ! | I179: 4710
H180: Opština Vrbas | I180: 33460 | J180: 33460 | K180: 1
H181: Opština Vrnjačka Banja ! | I181: 1581
H182: Opština Žabalj | I182: 17390 | J182: 17390 | K182: 1
H183: Opština Žabari | I183: 19130 | J183: 15050 | K183: 2
H184: Opština Žagubica | I184: 9400 | J184: 9400 | K184: 1
H185: Opština Žitište ! | I185: 20800
H186: Opština Žitorađa | I186: 14520 | J186: 14520 | K186: 1
H187: Ukupno | I187: 3551452.2 | J187: 3105068.7 | K187: 116

Sheet Pojedinačni podaci po LS
C2: U datoj tabeli prikazani su pojedinačni podaci o taksama i naknadama koje nadležne lokalne samouprave naplaćuju u objedinjenoj proceduri u zavisnosti od tipa zahteva. Iznos taksi i naknada odnosi se na dva tipa objekta od po 1000 kvadrata. Detaljniji opis tipova objekata možete naći u delu "Metodologija". Pored iznosa taksi navedeni su i svi podaci potrebni podnosiocu zahteva za uplatu navedene takse. Podaci o lokalnim samoupravama koje pored svog naziva imaju znak uzvika (!) prikupljeni su sa objava iz centralnog informacionog sistema te nisu uporedivi sa ostalim podacima. Napominjemo da su navedeni podaci informativnog karaktera i da je neophodno obratiti se nadležnom organu za traženje tačnih informacija za konkretan zahtev.
B6: Lokalna samouprava | C6: Tip zahteva | D6: Vrsta takse | E6: Tip takse | F6: Da li LS naplaćuje taksu u % iznosu | G6: Iznos takse Tip objekta 1 | H6: Iznos takse Tip objekta 2 | I6: Broj tekućeg računa | J6: Primalac | K6: Model | L6: Poziv na broj | M6: Pravni osnov | N6: Komentar
B7: Grad Beograd | C7: Lokacijski uslovi | D7: Podnošenje zahteva | E7: Lokalna administrativna taksa | G7: 300 | H7: 300 | I7: 840-742241843-03 | J7: Gradska uprava Beograd | K7: 97 | L7: 3650105 | M7: Odluka o izmeni Odluke o lokalnim administrativnim taksama(“Sl.list grada Beograda” br.96/2016)
B8: Grad Beograd | C8: Lokacijski uslovi | D8: Donošenje rešenja | E8: Lokalna administrativna taksa | G8: 31308 | H8: 31308 | I8: 840-742241843-03 | J8: Gradska uprava Beograd | K8: 97 | L8: 3650105 | M8: Odluka o izmeni Odluke o lokalnim administrativnim taksama(“Sl.list grada Beograda” br.96/2016)
B9: Grad Beograd | C9: Građevinska dozvola | D9: Podnošenje zahteva | E9: Lokalna administrativna taksa | G9: 300 | H9: 300 | I9: 840-742241843-03 | J9: Gradska uprava Beograd | K9: 97 | L9: 3650105 | M9: Odluka o izmeni Odluke o lokalnim administrativnim taksama(“Sl.list grada Beograda” br.96/2016)
B10: Grad Beograd | C10: Građevinska dozvola | D10: Donošenje rešenja | E10: Republička administrativna taksa | G10: 800 | H10: 800 | I10: 840-742221843-57 | J10: Budžet Republike Srbije | K10: 97 | L10: 44-018 | M10: Zakon o RAT - tarifni broj 165
B11: Grad Beograd | C11: Rešenje o odobrenju izvođenja radova po članu 145 Zakona | D11: Podnošenje zahteva | E11: Lokalna administrativna taksa | G11: 300 | H11: 300 | I11: 840-742241843-03 | J11: Gradska uprava Beograd | K11: 97 | L11: 3650105 | M11: Odluka o izmeni Odluke o lokalnim administrativnim taksama(“Sl.list grada Beograda” br.96/2016)
B12: Grad Beograd | C12: Rešenje o odobrenju izvođenja radova po članu 145 Zakona | D12: Donošenje rešenja | E12: Republička administrativna taksa | G12: 800 | H12: 800 | I12: 840-742221843-57 | J12: Budžet Republike Srbije | K12: 97 | L12: 44-018 | M12: Zakon o RAT - tarifni broj 165
B13: Grad Beograd | C13: Prijava radova | D13: Podnošenje zahteva | E13: Lokalna administrativna taksa | G13: 300 | H13: 300 | I13: 840-742241843-03 | J13: Gradska uprava Beograd | K13: 97 | L13: 3650105 | M13: Odluka o izmeni Odluke o lokalnim administrativnim taksama(“Sl.list grada Beograda” br.96/2016)
B14: Grad Beograd | C14: Prijava završetka izrade temelja i završetka objekta u konstruktivnom smislu | D14: Podnošenje zahteva | E14: Republička administrativna taksa | G14: 1600 | H14: 1600 | I14: 840-742221843-57 | J14: Budžet Republike Srbije | K14: 97 | L14: 44-018 | M14: Zakon o RAT - tarifni broj 164
B15: Grad Beograd | C15: Prijava završetka izrade temelja i završetka objekta u konstruktivnom smislu | D15: Podnošenje zahteva | E15: Lokalna administrativna taksa | G15: 300 | H15: 300 | I15: 840-742241843-03 | J15: Gradska uprava Beograd | K15: 97 | L15: 3650105 | M15: Odluka o izmeni Odluke o lokalnim administrativnim taksama(“Sl.list grada Beograda” br.96/2016)
B16: Grad Beograd | C16: Dostavljanje tehničke dokumentacije | D16: Podnošenje zahteva | E16: Lokalna administrativna taksa | G16: 300 | H16: 300 | I16: 840-742241843-03 | J16: Gradska uprava Beograd | K16: 97 | L16: 3650105 | M16: Odluka o izmeni Odluke o lokalnim administrativnim taksama(“Sl.list grada Beograda” br.96/2016)
B17: Grad Beograd | C17: Upotrebna dozvola | D17: Podnošenje zahteva | E17: Lokalna administrativna taksa | G17: 300 | H17: 300 | I17: 840-742241843-03 | J17: Gradska uprava Beograd | K17: 97 | L17: 3650105 | M17: Odluka o izmeni Odluke o lokalnim administrativnim taksama(“Sl.list grada Beograda” br.96/2016)
B18: Grad Beograd | C18: Upotrebna dozvola | D18: Donošenje rešenja | E18: Republička administrativna taksa | F18: DA | G18: 0.2% predračunske vrednosti objekta | H18: 0.2% predračunske vrednosti objekta | I18: 840-742221843-57 | J18: Budžet Republike Srbije | K18: 97 | L18: 44-018 | M18: Zakon o RAT - tarifni broj 170
B19: Grad Beograd | C19: Priključenje objekta na infrastrukturu | D19: Podnošenje zahteva | E19: Lokalna administrativna taksa | G19: 300 | H19: 300 | I19: 840-742241843-03 | J19: Gradska uprava Beograd | K19: 97 | L19: 3650105 | M19: Odluka o izmeni Odluke o lokalnim administrativnim taksama(“Sl.list grada Beograda” br.96/2016)
B20: Grad Čačak | C20: Lokacijski uslovi | D20: Podnošenje zahteva | E20: Republička administrativna taksa | G20: 830 | H20: 830 | I20: 840-742221843-57 | J20: Budžet Republike Srbije | K20: 97 | L20: 93-034 | M20: Zakon o RAT - tarifni broj 1 i tarifni broj 9
B21: Grad Čačak | C21: Građevinska dozvola | D21: Podnošenje zahteva | E21: Republička administrativna taksa | G21: 310 | H21: 310 | I21: 840-742221843-57 | J21: Budžet Republike Srbije | K21: 97 | L21: 93-034 | M21: Zakon o RAT - tarifni broj 1
B22: Grad Čačak | C22: Građevinska dozvola | D22: Donošenje rešenja | E22: Republička administrativna taksa | G22: 270 | H22: 270 | I22: 840-742221843-57 | J22: Budžet Republike Srbije | K22: 97 | L22: 93-034 | M22: Zakon o RAT - tarifni broj 165
B23: Grad Čačak | C23: Rešenje o odobrenju izvođenja radova po članu 145 Zakona | D23: Podnošenje zahteva | E23: Republička administrativna taksa | G23: 310 | H23: 310 | I23: 840-742221843-57 | J23: Budžet Republike Srbije | K23: 97 | L23: 93-034 | M23: Zakon o RAT - tarifni broj 1
B24: Grad Čačak | C24: Rešenje o odobrenju izvođenja radova po članu 145 Zakona | D24: Donošenje rešenja | E24: Republička administrativna taksa | G24: 400 | H24: 400 | I24: 840-742221843-57 | J24: Budžet Republike Srbije | K24: 97 | L24: 93-034 | M24: Zakon o RAT - tarifni broj 165
B25: Grad Čačak | C25: Prijava radova | D25: Podnošenje zahteva | E25: Republička administrativna taksa | G25: 620 | H25: 620 | I25: 840-742221843-57 | J25: Budžet Republike Srbije | K25: 97 | L25: 93-034 | M25: Zakon o RAT - tarifni broj 1 i tarifni broj 11
B26: Grad Čačak | C26: Prijava završetka izrade temelja i završetka objekta u konstruktivnom smislu | D26: Podnošenje zahteva | E26: Republička administrativna taksa | G26: 930 | H26: 930 | I26: 840-742221843-57 | J26: Budžet Republike Srbije | K26: 97 | L26: 93-034 | M26: Zakon o RAT - tarifni broj 1 (x2) i tarifni broj 11
B27: Grad Čačak | C27: Dostavljanje tehničke dokumentacije | D27: Podnošenje zahteva | E27: Republička administrativna taksa | G27: 310 | H27: 310 | I27: 840-742221843-57 | J27: Budžet Republike Srbije | K27: 97 | L27: 93-034 | M27: Zakon o RAT - tarifni broj 1
B28: Grad Čačak | C28: Upotrebna dozvola | D28: Podnošenje zahteva | E28: Republička administrativna taksa | G28: 310 | H28: 310 | I28: 840-742221843-57 | J28: Budžet Republike Srbije | K28: 97 | L28: 93-034 | M28: Zakon o RAT - tarifni broj 1
B29: Grad Čačak | C29: Upotrebna dozvola | D29: Podnošenje zahteva | E29: Republička administrativna taksa | F29: DA | G29: 0.2% predračunske vrednosti objekta | H29: 0.2% predračunske vrednosti objekta | I29: 840-742221843-57 | J29: Budžet Republike Srbije | K29: 97 | L29: 93-034 | M29: Zakon o RAT - tarifni broj 170
B30: Grad Čačak | C30: Priključenje objekta na infrastrukturu | D30: Podnošenje zahteva | E30: Republička administrativna taksa | G30: 310 | H30: 310 | I30: 840-742221843-57 | J30: Budžet Republike Srbije | K30: 97 | L30: 93-034 | M30: Zakon o RAT - tarifni broj 1
B31: Grad Jagodina | C31: Lokacijski uslovi | D31: Podnošenje zahteva | E31: Republička administrativna taksa | G31: 310 | H31: 310 | I31: 840-742221843-57 | J31: Budžet Republike Srbije | K31: 97 | L31: 04-096 | M31: Zakon o RAT - tarifni broj 1
B32: Grad Jagodina | C32: Lokacijski uslovi | D32: Donošenje rešenja | E32: Lokalna naknada | G32: 33000 | H32: 26400 | I32: 840-742241843-03 | J32: Gradska uprava Jagodina | K32: 97 | L32: 04-096 | M32: Odluka o cenovniku stvarnih troškova izvoda iz urbanističkih planova, akata o urbanističkim uslovima i ostalih urbanističkih akata ("Opštinski službeni glasnik opštine Jagodina broj 25/2004")
B33: Grad Jagodina | C33: Građevinska dozvola | D33: Podnošenje zahteva | E33: Republička administrativna taksa | G33: 1030 | H33: 1030 | I33: 840-742221843-57 | J33: Budžet Republike Srbije | K33: 97 | L33: 04-096 | M33: Zakon o RAT
B34: Grad Jagodina | C34: Rešenje o odobrenju izvođenja radova po članu 145 Zakona | D34: Podnošenje zahteva | E34: Republička administrativna taksa | G34: 660 | H34: 660 | I34: 840-742221843-57 | J34: Budžet Republike Srbije | K34: 97 | L34: 04-096 | M34: Zakon o RAT
B35: Grad Jagodina | C35: Prijava radova | D35: Podnošenje zahteva | E35: Republička administrativna taksa | G35: 310 | H35: 310 | I35: 840-742221843-57 | J35: Budžet Republike Srbije | K35: 97 | L35: 04-096 | M35: Zakon o RAT - tarifni broj 1
B36: Grad Jagodina | C36: Prijava završetka izrade temelja i završetka objekta u konstruktivnom smislu | D36: Podnošenje zahteva | E36: Republička administrativna taksa | G36: 310 | H36: 310 | I36: 840-742221843-57 | J36: Budžet Republike Srbije | K36: 97 | L36: 04-096 | M36: Zakon o RAT - tarifni broj 1
B37: Grad Jagodina | C37: Dostavljanje tehničke dokumentacije | D37: Podnošenje zahteva | E37: Republička administrativna taksa | G37: 310 | H37: 310 | I37: 840-742221843-57 | J37: Budžet Republike Srbije | K37: 97 | L37: 04-096 | M37: Zakon o RAT - tarifni broj 1
B38: Grad Jagodina | C38: Upotrebna dozvola | D38: Podnošenje zahteva | E38: Republička administrativna taksa | G38: 1030 | H38: 1030 | I38: 840-742221843-57 | J38: Budžet Republike Srbije | K38: 97 | L38: 04-096 | M38: Zakon o RAT
B39: Grad Jagodina | C39: Upotrebna dozvola | D39: Donošenje rešenja | E39: Republička administrativna taksa | F39: DA | G39: 0.2% predračunske vrednosti objekta | H39: 0.2% predračunske vrednosti objekta | I39: 840-742221843-57 | J39: Budžet Republike Srbije | K39: 97 | L39: 04-096 | M39: Zakon o RAT - tarifni broj 170
B40: Grad Jagodina | C40: Priključenje objekta na infrastrukturu | D40: Podnošenje zahteva | E40: Republička administrativna taksa | G40: 310 | H40: 310 | I40: 840-742221843-57 | J40: Budžet Republike Srbije | K40: 97 | L40: 04-096 | M40: Zakon o RAT - tarifni broj 1
B41: Grad Kikinda | C41: Lokacijski uslovi | D41: Podnošenje zahteva | E41: Republička administrativna taksa | G41: 830 | H41: 830 | I41: 840-742221843-57 | J41: Budžet Republike Srbije | K41: 97 | L41: 35-215 | M41: Zakon o RAT - tarifni broj 1 i 9
B42: Grad Kikinda | C42: Lokacijski uslovi | D42: Donošenje rešenja | E42: Lokalna naknada | G42: 51000 | H42: 96000 | I42: 840-745141843-30 | J42: Gradska uprava Kikinda | K42: 97 | L42: 35-215 | M42: Odluka o administrativnim taksama
B43: Grad Kikinda | C43: Građevinska dozvola | D43: Podnošenje zahteva | E43: Republička administrativna taksa | G43: 310 | H43: 310 | I43: 840-742221843-57 | J43: Budžet Republike Srbije | K43: 97 | L43: 35-215 | M43: Zakon o RAT - tarifni broj 1
B44: Grad Kikinda | C44: Građevinska dozvola | D44: Donošenje rešenja | E44: Republička administrativna taksa | G44: 800 | H44: 800 | I44: 840-742221843-57 | J44: Budžet Republike Srbije | K44: 97 | L44: 35-215 | M44: Zakon o RAT - tarifni broj 165
B45: Grad Kikinda | C45: Rešenje o odobrenju izvođenja radova po članu 145 Zakona | D45: Podnošenje zahteva | E45: Republička administrativna taksa | G45: 310 | H45: 310 | I45: 840-742221843-57 | J45: Budžet Republike Srbije | K45: 97 | L45: 35-215 | M45: Zakon o RAT - tarifni broj 1
B46: Grad Kikinda | C46: Rešenje o odobrenju izvođenja radova po članu 145 Zakona | D46: Donošenje rešenja | E46: Republička administrativna taksa | G46: 800 | H46: 800 | I46: 840-742221843-57 | J46: Budžet Republike Srbije | K46: 97 | L46: 35-215 | M46: Zakon o RAT - tarifni broj 165
B47: Grad Kikinda | C47: Prijava radova | D47: Podnošenje zahteva | E47: Republička administrativna taksa | G47: 310 | H47: 310 | I47: 840-742221843-57 | J47: Budžet Republike Srbije | K47: 97 | L47: 35-215 | M47: Zakon o RAT - tarifni broj 1
B48: Grad Kikinda | C48: Prijava radova | D48: Podnošenje zahteva | E48: Republička administrativna taksa | G48: 310 | H48: 310 | I48: 840-742221843-57 | J48: Budžet Republike Srbije | K48: 97 | L48: 35-215 | M48: Zakon o RAT - tarifni broj 11
B49: Grad Kikinda | C49: Prijava završetka izrade temelja i završetka objekta u konstruktivnom smislu | D49: Podnošenje zahteva | E49: Republička administrativna taksa | G49: =1600+310 -> 1910 | H49: =1600+310 -> 1910 | I49: 840-742221843-57 | J49: Budžet Republike Srbije | K49: 97 | L49: 35-215 | M49: Zakon o RAT - tarifni broj 1 i 164
B50: Grad Kikinda | C50: Dostavljanje tehničke dokumentacije | D50: Podnošenje zahteva | E50: Republička administrativna taksa | G50: 310 | H50: 310 | I50: 840-742221843-57 | J50: Budžet Republike Srbije | K50: 97 | L50: 35-215 | M50: Zakon o RAT - tarifni broj 1
B51: Grad Kikinda | C51: Upotrebna dozvola | D51: Podnošenje zahteva | E51: Republička administrativna taksa | G51: 310 | H51: 310 | I51: 840-742221843-57 | J51: Budžet Republike Srbije | K51: 97 | L51: 35-215 | M51: Zakon o RAT - tarifni broj 1
B52: Grad Kikinda | C52: Upotrebna dozvola | D52: Donošenje rešenja | E52: Republička administrativna taksa | F52: DA | G52: 0.2% predračunske vrednosti objekta | H52: 0.2% predračunske vrednosti objekta | I52: 840-742221843-57 | J52: Budžet Republike Srbije | K52: 97 | L52: 35-215 | M52: Zakon o RAT - tarifni broj 170
B53: Grad Kikinda | C53: Priključenje objekta na infrastrukturu | D53: Podnošenje zahteva | E53: Republička administrativna taksa | G53: 310 | H53: 310 | I53: 840-742221843-57 | J53: Budžet Republike Srbije | K53: 97 | L53: 35-215 | M53: Zakon o RAT - tarifni broj 1
B54: Grad Kragujevac | C54: Lokacijski uslovi | D54: Podnošenje zahteva | E54: Republička administrativna taksa | G54: 310 | H54: 310 | I54: 840-742221843-57 | J54: Budžet Republike Srbije | K54: 97 | L54: 48-049 | M54: Zakon o RAT - tarifni broj 1
B55: Grad Kragujevac | C55: Lokacijski uslovi | D55: Podnošenje zahteva | E55: Lokalna administrativna taksa | G55: 66210 | H55: 44150 | I55: 840-742341843-24 | J55: Gradska uprava Kragujevca | K55: 97 | L55: 24-531-94663 | M55: Odluka o troškovima i naknadama za rad organa Grada, stručni službi i posebnih službi organa Grada ("sl.list Grada Kragujevca", br.26/11)
B56: Grad Kragujevac | C56: Građevinska dozvola | D56: Podnošenje zahteva | E56: Republička administrativna taksa | G56: 310 | H56: 310 | I56: 840-742221843-57 | J56: Budžet Republike Srbije | K56: 97 | L56: 48-049 | M56: Zakon o RAT - tarifni broj 1
B57: Grad Kragujevac | C57: Građevinska dozvola | D57: Donošenje rešenja | E57: Republička administrativna taksa | G57: 800 | H57: 800 | I57: 840-742221843-57 | J57: Budžet Republike Srbije | K57: 97 | L57: 48-049 | M57: Zakon o RAT - tarifni broj 165
B58: Grad Kragujevac | C58: Rešenje o odobrenju izvođenja radova po članu 145 Zakona | D58: Podnošenje zahteva | E58: Republička administrativna taksa | G58: 310 | H58: 310 | I58: 840-742221843-57 | J58: Budžet Republike Srbije | K58: 97 | L58: 48-049 | M58: Zakon o RAT - tarifni broj 1
B59: Grad Kragujevac | C59: Rešenje o odobrenju izvođenja radova po članu 145 Zakona | D59: Donošenje rešenja | E59: Republička administrativna taksa | G59: 400 | H59: 400 | I59: 840-742221843-57 | J59: Budžet Republike Srbije | K59: 97 | L59: 48-049 | M59: Zakon o RAT - tarifni broj 165
B60: Grad Kragujevac | C60: Prijava radova | D60: Podnošenje zahteva | E60: Republička administrativna taksa | G60: 310 | H60: 310 | I60: 840-742221843-57 | J60: Budžet Republike Srbije | K60: 97 | L60: 48-049 | M60: Zakon o RAT - tarifni broj 1
B61: Grad Kragujevac | C61: Prijava završetka izrade temelja i završetka objekta u konstruktivnom smislu | D61: Podnošenje zahteva | E61: Republička administrativna taksa | G61: =310+1600 -> 1910 | H61: =1600+310 -> 1910 | I61: 840-742221843-57 | J61: Budžet Republike Srbije | K61: 97 | L61: 48-049 | M61: Zakon o RAT - tarifni broj 1 I 164
B62: Grad Kragujevac | C62: Dostavljanje tehničke dokumentacije | D62: Podnošenje zahteva | E62: Republička administrativna taksa | G62: 310 | H62: 310 | I62: 840-742221843-57 | J62: Budžet Republike Srbije | K62: 97 | L62: 48-049 | M62: Zakon o RAT - tarifni broj 1
B63: Grad Kragujevac | C63: Upotrebna dozvola | D63: Podnošenje zahteva | E63: Republička administrativna taksa | G63: 310 | H63: 310 | I63: 840-742221843-57 | J63: Budžet Republike Srbije | K63: 97 | L63: 48-049 | M63: Zakon o RAT - tarifni broj 1
B64: Grad Kragujevac | C64: Upotrebna dozvola | D64: Donošenje rešenja | E64: Republička administrativna taksa | F64: DA | G64: 0.2% predračunske vrednosti objekta | H64: 0.2% predračunske vrednosti objekta | I64: 840-742221843-57 | J64: Budžet Republike Srbije | K64: 97 | L64: 48-049 | M64: Zakon o RAT - tarifni broj 170
B65: Grad Kragujevac | C65: Priključenje objekta na infrastrukturu | D65: Podnošenje zahteva | E65: Republička administrativna taksa | G65: 310 | H65: 310 | I65: 840-742221843-57 | J65: Budžet Republike Srbije | K65: 97 | L65: 48-049 | M65: Zakon o RAT - tarifni broj 1
B66: Grad Kruševac | C66: Lokacijski uslovi | D66: Podnošenje zahteva | E66: Republička administrativna taksa | G66: 310 | H66: 310 | I66: 840-742221843-57 | J66: Budžet Republike Srbije | K66: 97 | L66: 39-052 | M66: Zakon o RAT - tarifni broj 1
B67: Grad Kruševac | C67: Lokacijski uslovi | D67: Podnošenje zahteva | E67: Lokalna administrativna taksa | G67: 250 | H67: 250 | I67: 840-742241-84303 | J67: Gradska uprava Kruševac | K67: 97 | L67: 39-052 | M67: Odluka o lokalnim komunalnim taksama (Sl.list grada Kruševca, br. 12/2009)
B68: Grad Kruševac | C68: Lokacijski uslovi | D68: Donošenje rešenja | E68: Republička administrativna taksa | G68: 520 | H68: 520 | I68: 840-742221843-57 | J68: Budžet Republike Srbije | K68: 97 | L68: 39-052 | M68: Zakon o RAT - tarifni broj 9
B69: Grad Kruševac | C69: Lokacijski uslovi | D69: Donošenje rešenja | E69: Lokalna administrativna taksa | G69: 50 | H69: 50 | I69: 840-742241-84303 | J69: Gradska uprava Kruševac | K69: 97 | L69: 39-052 | M69: Odluka o lokalnim komunalnim taksama (Sl.list grada Kruševca, br. 12/2009)
B70: Grad Kruševac | C70: Građevinska dozvola | D70: Podnošenje zahteva | E70: Republička administrativna taksa | G70: 310 | H70: 310 | I70: 840-742221843-57 | J70: Budžet Republike Srbije | K70: 97 | L70: 39-052 | M70: Zakon o RAT - tarifni broj 1
B71: Grad Kruševac | C71: Građevinska dozvola | D71: Podnošenje zahteva | E71: Lokalna administrativna taksa | G71: 250 | H71: 250 | I71: 840-742241-84303 | J71: Gradska uprava Kruševac | K71: 97 | L71: 39-052 | M71: Odluka o lokalnim komunalnim taksama (Sl.list grada Kruševca, br. 12/2009)
B72: Grad Kruševac | C72: Građevinska dozvola | D72: Donošenje rešenja | E72: Republička administrativna taksa | G72: 800 | H72: 800 | I72: 840-742221843-57 | J72: Budžet Republike Srbije | K72: 97 | L72: 39-052 | M72: Zakon o RAT - tarifni broj 165
B73: Grad Kruševac | C73: Građevinska dozvola | D73: Donošenje rešenja | E73: Lokalna administrativna taksa | G73: 50 | H73: 50 | I73: 840-742241-84303 | J73: Gradska uprava Kruševac | K73: 97 | L73: 39-052 | M73: Odluka o lokalnim komunalnim taksama (Sl.list grada Kruševca, br. 12/2009)
B74: Grad Kruševac | C74: Rešenje o odobrenju izvođenja radova po članu 145 Zakona | D74: Podnošenje zahteva | E74: Republička administrativna taksa | G74: 310 | H74: 310 | I74: 840-742221843-57 | J74: Budžet Republike Srbije | K74: 97 | L74: 39-052 | M74: Zakon o RAT - tarifni broj 165
B75: Grad Kruševac | C75: Rešenje o odobrenju izvođenja radova po članu 145 Zakona | D75: Podnošenje zahteva | E75: Lokalna administrativna taksa | G75: 200 | H75: 200 | I75: 840-742241-84303 | J75: Gradska uprava Kruševac | K75: 97 | L75: 39-052 | M75: Odluka o lokalnim komunalnim taksama (Sl.list grada Kruševca, br. 12/2009)
B76: Grad Kruševac | C76: Rešenje o odobrenju izvođenja radova po članu 145 Zakona | D76: Donošenje rešenja | E76: Republička administrativna taksa | G76: 520 | H76: 520 | I76: 840-742221843-57 | J76: Budžet Republike Srbije | K76: 97 | L76: 39-052 | M76: Zakon o RAT - tarifni broj 165
B77: Grad Kruševac | C77: Rešenje o odobrenju izvođenja radova po članu 145 Zakona | D77: Donošenje rešenja | E77: Lokalna administrativna taksa | G77: 50 | H77: 50 | I77: 840-742241-84303 | J77: Gradska uprava Kruševac | K77: 97 | L77: 39-052 | M77: Odluka o lokalnim komunalnim taksama (Sl.list grada Kruševca, br. 12/2009)
B78: Grad Kruševac | C78: Prijava radova | D78: Podnošenje zahteva | E78: Republička administrativna taksa | G78: 310 | H78: 310 | I78: 840-742221843-57 | J78: Budžet Republike Srbije | K78: 97 | L78: 39-052 | M78: Zakon o RAT - tarifni broj 1
B79: Grad Kruševac | C79: Prijava radova | D79: Podnošenje zahteva | E79: Lokalna administrativna taksa | G79: 50 | H79: 50 | I79: 840-742241-84303 | J79: Gradska uprava Kruševac | K79: 97 | L79: 39-052 | M79: Odluka o lokalnim komunalnim taksama (Sl.list grada Kruševca, br. 12/2009)
B80: Grad Kruševac | C80: Prijava radova | D80: Donošenje rešenja | E80: Republička administrativna taksa | G80: 520 | H80: 520 | I80: 840-742221843-57 | J80: Budžet Republike Srbije | K80: 97 | L80: 39-052 | M80: Zakon o RAT - tarifni broj 9
B81: Grad Kruševac | C81: Prijava radova | D81: Donošenje rešenja | E81: Lokalna administrativna taksa | G81: 50 | H81: 50 | I81: 840-742241-84303 | J81: Gradska uprava Kruševac | K81: 97 | L81: 39-052 | M81: Odluka o lokalnim komunalnim taksama (Sl.list grada Kruševca, br. 12/2009)
B82: Grad Kruševac | C82: Prijava završetka izrade temelja i završetka objekta u konstruktivnom smislu | D82: Podnošenje zahteva | E82: Republička administrativna taksa | G82: 620 | H82: 620 | I82: 840-742221843-57 | J82: Budžet Republike Srbije | K82: 97 | L82: 39-052 | M82: Zakon o RAT - tarifni broj 1 (x2)
B83: Grad Kruševac | C83: Prijava završetka izrade temelja i završetka objekta u konstruktivnom smislu | D83: Podnošenje zahteva | E83: Lokalna administrativna taksa | G83: 570 | H83: 570 | I83: 840-742241-84303 | J83: Gradska uprava Kruševac | K83: 97 | L83: 39-052 | M83: Odluka o lokalnim komunalnim taksama (Sl.list grada Kruševca, br. 12/2009)
B84: Grad Kruševac | C84: Prijava završetka izrade temelja i završetka objekta u konstruktivnom smislu | D84: Donošenje rešenja | E84: Republička administrativna taksa | G84: =1600+520 -> 2120 | H84: =1600+520 -> 2120 | I84: 840-742221843-57 | J84: Budžet Republike Srbije | K84: 97 | L84: 39-052 | M84: Zakon o RAT - tarifni broj 164 i tarifni broj 9
B85: Grad Kruševac | C85: Prijava završetka izrade temelja i završetka objekta u konstruktivnom smislu | D85: Donošenje rešenja | E85: Lokalna administrativna taksa | G85: 50 | H85: 50 | I85: 840-742241-84303 | J85: Gradska uprava Kruševac | K85: 97 | L85: 39-052 | M85: Odluka o lokalnim komunalnim taksama (Sl.list grada Kruševca, br. 12/2009)
B86: Grad Kruševac | C86: Dostavljanje tehničke dokumentacije | D86: Podnošenje zahteva | E86: Republička administrativna taksa | G86: 310 | H86: 310 | I86: 840-742221843-57 | J86: Budžet Republike Srbije | K86: 97 | L86: 39-052 | M86: Zakon o RAT - tarifni broj 1
B87: Grad Kruševac | C87: Dostavljanje tehničke dokumentacije | D87: Podnošenje zahteva | E87: Lokalna administrativna taksa | G87: 50 | H87: 50 | I87: 840-742241-84303 | J87: Gradska uprava Kruševac | K87: 97 | L87: 39-052 | M87: Odluka o lokalnim komunalnim taksama (Sl.list grada Kruševca, br. 12/2009)
B88: Grad Kruševac | C88: Upotrebna dozvola | D88: Podnošenje zahteva | E88: Republička administrativna taksa | G88: 310 | H88: 310 | I88: 840-742221843-57 | J88: Budžet Republike Srbije | K88: 97 | L88: 39-052 | M88: Zakon o RAT - tarifni broj 1
B89: Grad Kruševac | C89: Upotrebna dozvola | D89: Podnošenje zahteva | E89: Lokalna administrativna taksa | G89: 1210 | H89: 1210 | I89: 840-742241-84303 | J89: Gradska uprava Kruševac | K89: 97 | L89: 39-052 | M89: Odluka o lokalnim komunalnim taksama (Sl.list grada Kruševca, br. 12/2009)
B90: Grad Kruševac | C90: Upotrebna dozvola | D90: Donošenje rešenja | E90: Republička administrativna taksa | G90: 520 | H90: 520 | I90: 840-742221843-57 | J90: Budžet Republike Srbije | K90: 97 | L90: 39-052 | M90: Zakon o RAT - tarifni broj 9
B91: Grad Kruševac | C91: Upotrebna dozvola | D91: Donošenje rešenja | E91: Republička administrativna taksa | F91: DA | G91: 0.2% predračunske vrednosti objekta | H91: 0.2% predračunske vrednosti objekta | I91: 840-742221843-57 | J91: Budžet Republike Srbije | K91: 97 | L91: 39-052 | M91: Zakon o RAT - tarifni broj 170
B92: Grad Kruševac | C92: Upotrebna dozvola | D92: Donošenje rešenja | E92: Lokalna administrativna taksa | G92: 50 | H92: 50 | I92: 840-742241-84303 | J92: Gradska uprava Kruševac | K92: 97 | L92: 39-052 | M92: Odluka o lokalnim komunalnim taksama (Sl.list grada Kruševca, br. 12/2009)
B93: Grad Kruševac | C93: Priključenje objekta na infrastrukturu | D93: Podnošenje zahteva | E93: Republička administrativna taksa | G93: 310 | H93: 310 | I93: 840-742221843-57 | J93: Budžet Republike Srbije | K93: 97 | L93: 39-052 | M93: Zakon o RAT - tarifni broj 1
B94: Grad Kruševac | C94: Priključenje objekta na infrastrukturu | D94: Podnošenje zahteva | E94: Lokalna administrativna taksa | G94: 50 | H94: 50 | I94: 840-742241-84303 | J94: Gradska uprava Kruševac | K94: 97 | L94: 39-052 | M94: Odluka o lokalnim komunalnim taksama (Sl.list grada Kruševca, br. 12/2009)
B95: Grad Leskovac | C95: Lokacijski uslovi | D95: Podnošenje zahteva | E95: Republička administrativna taksa | G95: 310 | H95: 310 | I95: 840-742221843-57 | J95: Budžet Republike Srbije | K95: 97 | L95: 21-058 | M95: Zakon o RAT - tarifni broj 1
B96: Grad Leskovac | C96: Lokacijski uslovi | D96: Donošenje rešenja | E96: Lokalna administrativna taksa | G96: 101600 | H96: 69600 | I96: 840-742241843-03 | J96: Gradska uprava Leskovac | K96: 97 | L96: 21-058 | M96: Odluka o gradskim administrativnim taksama ("Sl. glasnik grada Leskovca", br. 2/2010, 10/2010, 13/2010, 3/2012, 23/2014, 5/2015 i 51/2016)
B97: Grad Leskovac | C97: Građevinska dozvola | D97: Podnošenje zahteva | E97: Republička administrativna taksa | G97: 310 | H97: 310 | I97: 840-742221843-57 | J97: Budžet Republike Srbije | K97: 97 | L97: 21-058 | M97: Zakon o RAT - tarifni broj 1
B98: Grad Leskovac | C98: Građevinska dozvola | D98: Donošenje rešenja | E98: Republička administrativna taksa | G98: 800 | H98: 800 | I98: 840-742221843-57 | J98: Budžet Republike Srbije | K98: 97 | L98: 21-058 | M98: Zakon o RAT - tarifni broj 165
B99: Grad Leskovac | C99: Rešenje o odobrenju izvođenja radova po članu 145 Zakona | D99: Podnošenje zahteva | E99: Republička administrativna taksa | G99: 310 | H99: 310 | I99: 840-742221843-57 | J99: Budžet Republike Srbije | K99: 97 | L99: 21-058 | M99: Zakon o RAT - tarifni broj 1 | N99: Proveri da li Niš naplaćuje RAT za LU
B100: Grad Leskovac | C100: Rešenje o odobrenju izvođenja radova po članu 145 Zakona | D100: Donošenje rešenja | E100: Republička administrativna taksa | G100: 800 | H100: 800 | I100: 840-742221843-57 | J100: Budžet Republike Srbije | K100: 97 | L100: 21-058 | M100: Zakon o RAT - tarifni broj 165
B101: Grad Leskovac | C101: Rešenje o odobrenju izvođenja radova po članu 145 Zakona | D101: Donošenje rešenja | E101: Lokalna administrativna taksa | G101: 1500 | H101: 1500 | I101: 840-742241843-03 | J101: Gradska uprava Leskovac | K101: 97 | L101: 21-058 | M101: Odluka o gradskim administrativnim taksama ("Sl. glasnik grada Leskovca", br. 2/2010, 10/2010, 13/2010, 3/2012, 23/2014, 5/2015 i 51/2016)
B102: Grad Leskovac | C102: Prijava radova | D102: Podnošenje zahteva | E102: Republička administrativna taksa | G102: 310 | H102: 310 | I102: 840-742221843-57 | J102: Budžet Republike Srbije | K102: 97 | L102: 21-058 | M102: Zakon o RAT - tarifni broj 165
B103: Grad Leskovac | C103: Prijava radova | D103: Donošenje rešenja | E103: Lokalna administrativna taksa | G103: 1000 | H103: 1000 | I103: 840-742241843-03 | J103: Budžet Republike Srbije | K103: 97 | L103: 21-058 | M103: Zakon o RAT - tarifni broj 7
B104: Grad Leskovac | C104: Prijava završetka izrade temelja i završetka objekta u konstruktivnom smislu | D104: Podnošenje zahteva | E104: Republička administrativna taksa | G104: 310 | H104: 310 | I104: 840-742221843-57 | J104: Budžet Republike Srbije | K104: 97 | L104: 21-058 | M104: Zakon o RAT - tarifni broj 165
B105: Grad Leskovac | C105: Prijava završetka izrade temelja i završetka objekta u konstruktivnom smislu | D105: Donošenje rešenja | E105: Lokalna administrativna taksa | G105: 1000 | H105: 1000 | I105: 840-742241843-03 | J105: Budžet Republike Srbije | K105: 97 | L105: 21-058 | M105: Zakon o RAT - tarifni broj 7
B106: Grad Leskovac | C106: Dostavljanje tehničke dokumentacije | D106: Podnošenje zahteva | E106: Republička administrativna taksa | G106: 310 | H106: 310 | I106: 840-742221843-57 | J106: Budžet Republike Srbije | K106: 97 | L106: 21-058 | M106: Zakon o RAT - tarifni broj 1
B107: Grad Leskovac | C107: Upotrebna dozvola | D107: Podnošenje zahteva | E107: Republička administrativna taksa | G107: 310 | H107: 310 | I107: 840-742221843-57 | J107: Budžet Republike Srbije | K107: 97 | L107: 21-058 | M107: Zakon o RAT - tarifni broj 1
B108: Grad Leskovac | C108: Upotrebna dozvola | D108: Donošenje rešenja | E108: Republička administrativna taksa | F108: da | G108: 0.2% predračunske vrednosti objekta | H108: 0.2% predračunske vrednosti objekta | I108: 840-742221843-57 | J108: Budžet Republike Srbije | K108: 97 | L108: 21-058 | M108: Zakon o RAT - tarifni broj 170
B109: Grad Leskovac | C109: Upotrebna dozvola | D109: Donošenje rešenja | E109: Lokalna administrativna taksa | G109: =7*1000 -> 7000 | H109: =7*1000 -> 7000 | I109: 840-742241843-03 | J109: Gradska uprava Leskovac | K109: 97 | L109: 21-058 | M109: Odluka o gradskim administrativnim taksama ("Sl. glasnik grada Leskovca", br. 2/2010, 10/2010, 13/2010, 3/2012, 23/2014, 5/2015 i 51/2016)
B110: Grad Leskovac | C110: Priključenje objekta na infrastrukturu | D110: Podnošenje zahteva | E110: Republička administrativna taksa | G110: 310 | H110: 310 | I110: 840-742221843-57 | J110: Budžet Republike Srbije | K110: 97 | L110: 21-058 | M110: Zakon o RAT - tarifni broj 1
B111: Grad Leskovac | C111: Priključenje objekta na infrastrukturu | D111: Donošenje rešenja | E111: Lokalna administrativna taksa | G111: 1500 | H111: 1500 | I111: 840-742241843-03 | J111: Gradska uprava Leskovac | K111: 97 | L111: 21-058 | M111: Odluka o gradskim administrativnim taksama ("Sl. glasnik grada Leskovca", br. 2/2010, 10/2010, 13/2010, 3/2012, 23/2014, 5/2015 i 51/2016)
B112: Grad Loznica | C112: Lokacijski uslovi | D112: Podnošenje zahteva | E112: Republička administrativna taksa | G112: 310 | H112: 310 | I112: 840-742221843-57 | J112: Budžet Republike Srbije | K112: 97 | L112: 18-059 | M112: Zakon o RAT - tarifni broj 1
B113: Grad Loznica | C113: Lokacijski uslovi | D113: Podnošenje zahteva | E113: Lokalna administrativna taksa | G113: 10000 | H113: 10000 | I113: 840-742341843-24 | J113: Gradska uprava Loznica | K113: 97 | L113: 18-059 | M113: Odluka o lok. adm . taksama (Sl.list grada Loznice“br.11/13, 6/14 i 7/15) TB 6.6
B114: Grad Loznica | C114: Građevinska dozvola | D114: Podnošenje zahteva | E114: Republička administrativna taksa | G114: 310 | H114: 310 | I114: 840-742221843-57 | J114: Budžet Republike Srbije | K114: 97 | L114: 18-059 | M114: Zakon o RAT - tarifni broj 1
B115: Grad Loznica | C115: Građevinska dozvola | D115: Donošenje rešenja | E115: Republička administrativna taksa | G115: 800 | H115: 800 | I115: 840-742221843-57 | J115: Budžet Republike Srbije | K115: 97 | L115: 18-059 | M115: Zakon o RAT - tarifni broj 165
B116: Grad Loznica | C116: Građevinska dozvola | D116: Donošenje rešenja | E116: Lokalna administrativna taksa | G116: =5*1000 -> 5000 | H116: =5*1000 -> 5000 | I116: 840-742241843-03 | J116: Gradska uprava Loznica | K116: 97 | L116: 18-059 | M116: Zakon o RAT - tarifni broj 165
B117: Grad Loznica | C117: Rešenje o odobrenju izvođenja radova po članu 145 Zakona | D117: Podnošenje zahteva | E117: Republička administrativna taksa | G117: 310 | H117: 310 | I117: 840-742221843-57 | J117: Budžet Republike Srbije | K117: 97 | L117: 18-059 | M117: Zakon o RAT - tarifni broj 1
B118: Grad Loznica | C118: Rešenje o odobrenju izvođenja radova po članu 145 Zakona | D118: Donošenje rešenja | E118: Republička administrativna taksa | G118: 400 | H118: 400 | I118: 840-742221843-57 | J118: Budžet Republike Srbije | K118: 97 | L118: 18-059 | M118: Zakon o RAT - tarifni broj 165
B119: Grad Loznica | C119: Prijava radova | D119: Podnošenje zahteva | E119: Republička administrativna taksa | G119: 310 | H119: 310 | I119: 840-742221843-57 | J119: Budžet Republike Srbije | K119: 97 | L119: 18-059 | M119: Zakon o RAT - tarifni broj 1
B120: Grad Loznica | C120: Prijava završetka izrade temelja i završetka objekta u konstruktivnom smislu | D120: Podnošenje zahteva | E120: Republička administrativna taksa | G120: 310 | H120: 310 | I120: 840-742221843-57 | J120: Budžet Republike Srbije | K120: 97 | L120: 18-059 | M120: Zakon o RAT - tarifni broj 1
B121: Grad Loznica | C121: Dostavljanje tehničke dokumentacije | D121: Podnošenje zahteva | E121: Republička administrativna taksa | G121: 310 | H121: 310 | I121: 840-742221843-57 | J121: Budžet Republike Srbije | K121: 97 | L121: 18-059 | M121: Zakon o RAT - tarifni broj 1
B122: Grad Loznica | C122: Upotrebna dozvola | D122: Podnošenje zahteva | E122: Republička administrativna taksa | G122: 310 | H122: 310 | I122: 840-742221843-57 | J122: Budžet Republike Srbije | K122: 97 | L122: 18-059 | M122: Zakon o RAT - tarifni broj 1
B123: Grad Loznica | C123: Upotrebna dozvola | D123: Donošenje rešenja | E123: Republička administrativna taksa | G123: 520 | H123: 520 | I123: 840-742221843-57 | J123: Budžet Republike Srbije | K123: 97 | L123: 18-059 | M123: Zakon o RAT - tarifni broj 9
B124: Grad Loznica | C124: Upotrebna dozvola | D124: Donošenje rešenja | E124: Republička administrativna taksa | G124: =5*1000 -> 5000 | H124: =5*1000 -> 5000 | I124: 840-742241843-03 | J124: Gradska uprava Loznica | K124: 97 | L124: 18-059 | M124: Odluka o lok. adm . taksama (Sl.list grada Loznice“br.11/13, 6/14 i 7/15) TB 6.4
B125: Grad Loznica | C125: Priključenje objekta na infrastrukturu | D125: Podnošenje zahteva | E125: Republička administrativna taksa | G125: 310 | H125: 310 | I125: 840-742221843-57 | J125: Budžet Republike Srbije | K125: 97 | L125: 18-059 | M125: Zakon o RAT - tarifni broj 1
B126: Grad Niš | C126: Lokacijski uslovi | D126: Podnošenje zahteva | E126: Lokalna administrativna taksa | G126: 25200 | H126: 18200 | I126: 840-742341843-24 | J126: Gradska uprava Niš | K126: 97 | L126: 87-521 | M126: Odluka o lokalnim administrativnim taksama („Sl. list Grada Niša“ br. 90/2015 i 98/2015)
B127: Grad Niš | C127: Građevinska dozvola | D127: Podnošenje zahteva | E127: Republička administrativna taksa | G127: 1100 | H127: 1100 | I127: 840-742221843-57 | J127: Budžet Republike Srbije | K127: 97 | L127: GO Niška Banja 23-122, GO Pantelej 14-125, GO Crveni Krst 11-126, GO Palilula 08-127, GO Medijana 05-128 | M127: Zakon o RAT
B128: Grad Niš | C128: Rešenje o odobrenju izvođenja radova po članu 145 Zakona | D128: Podnošenje zahteva | E128: Lokalna administrativna taksa | G128: 5200 | H128: 5200 | I128: 840-742341843-24 | J128: Gradska uprava Niš | K128: 97 | L128: 87-521 | M128: Odluka o lokalnim administrativnim taksama („Sl. list Grada Niša“ br. 90/2015 i 98/2015)
B129: Grad Niš | C129: Prijava radova | D129: Podnošenje zahteva | E129: Lokalna administrativna taksa | G129: 1200 | H129: 1200 | I129: 840-742341843-24 | J129: Gradska uprava Niš | K129: 97 | L129: 87-521 | M129: Odluka o lokalnim administrativnim taksama („Sl. list Grada Niša“ br. 90/2015 i 98/2015)
B130: Grad Niš | C130: Prijava završetka izrade temelja i završetka objekta u konstruktivnom smislu | D130: Podnošenje zahteva | E130: Lokalna administrativna taksa | G130: 1200 | H130: 1200 | I130: 840-742341843-24 | J130: Gradska uprava Niš | K130: 97 | L130: 87-521 | M130: Odluka o lokalnim administrativnim taksama („Sl. list Grada Niša“ br. 90/2015 i 98/2015)
B131: Grad Niš | C131: Dostavljanje tehničke dokumentacije | D131: Podnošenje zahteva | E131: Lokalna administrativna taksa | G131: 700 | H131: 700 | I131: 840-742341843-24 | J131: Gradska uprava Niš | K131: 97 | L131: 87-521 | M131: Odluka o lokalnim administrativnim taksama („Sl. list Grada Niša“ br. 90/2015 i 98/2015)
B132: Grad Niš | C132: Upotrebna dozvola | D132: Podnošenje zahteva | E132: Republička administrativna taksa | G132: 310 | H132: 310 | I132: 840-742221843-57 | J132: Budžet Republike Srbije | K132: 97 | L132: GO Niška Banja 23-122, GO Pantelej 14-125, GO Crveni Krst 11-126, GO Palilula 08-127, GO Medijana 05-128 | M132: Zakon o RAT - tarifni broj 1
B133: Grad Niš | C133: Upotrebna dozvola | D133: Podnošenje zahteva | E133: Republička administrativna taksa | F133: DA | G133: 0.2% predračunske vrednosti objekta | H133: 0.2% predračunske vrednosti objekta | I133: 840-742221843-57 | J133: Budžet Republike Srbije | K133: 97 | L133: GO Niška Banja 23-122, GO Pantelej 14-125, GO Crveni Krst 11-126, GO Palilula 08-127, GO Medijana 05-128 | M133: Zakon o RAT - tarifni broj 170
B134: Grad Niš | C134: Priključenje objekta na infrastrukturu | D134: Podnošenje zahteva | E134: Lokalna administrativna taksa | G134: 700 | H134: 700 | I134: 840-742341843-24 | J134: Gradska uprava Niš | K134: 97 | L134: 87-521 | M134: Odluka o lokalnim administrativnim taksama („Sl. list Grada Niša“ br. 90/2015 i 98/2015)
B135: Grad Novi Pazar | C135: Lokacijski uslovi | D135: Podnošenje zahteva | E135: Republička administrativna taksa | G135: 310 | H135: 310 | I135: 840-742221843-54 | J135: Budžet Republike Srbije | K135: 97 | L135: 67 075 | M135: Zakon o RAT - tarifni broj 1
B136: Grad Novi Pazar | C136: Lokacijski uslovi | D136: Podnošenje zahteva | E136: Lokalna administrativna taksa | G136: 2500 | H136: 2500 | I136: 840-742241843-03 | J136: Gradska uprava Novi Pazar | K136: 97 | L136: 67 075 | M136: Odluka o optinskim administrativnim taksama-„Sl.list grada Novog Pazara“ br.11/2015
B137: Grad Novi Pazar | C137: Lokacijski uslovi | D137: Donošenje rešenja | E137: Lokalna administrativna taksa | G137: 350 | H137: 350 | I137: 840-742241843-03 | J137: Gradska uprava Novi Pazar | K137: 97 | L137: 67 075 | M137: Odluka o optinskim administrativnim taksama-„Sl.list grada Novog Pazara“ br.11/2015
B138: Grad Novi Pazar | C138: Građevinska dozvola | D138: Podnošenje zahteva | E138: Republička administrativna taksa | G138: 310 | H138: 310 | I138: 840-742221843-54 | J138: Budžet Republike Srbije | K138: 97 | L138: 67 075 | M138: Zakon o RAT - tarifni broj 1
B139: Grad Novi Pazar | C139: Građevinska dozvola | D139: Podnošenje zahteva | E139: Lokalna administrativna taksa | G139: 2500 | H139: 2500 | I139: 840-742241843-03 | J139: Gradska uprava Novi Pazar | K139: 97 | L139: 67 075 | M139: Odluka o optinskim administrativnim taksama-„Sl.list grada Novog Pazara“ br.11/2015
B140: Grad Novi Pazar | C140: Građevinska dozvola | D140: Donošenje rešenja | E140: Lokalna administrativna taksa | G140: 350 | H140: 350 | I140: 840-742241843-03 | J140: Gradska uprava Novi Pazar | K140: 97 | L140: 67 075 | M140: Odluka o optinskim administrativnim taksama-„Sl.list grada Novog Pazara“ br.11/2015
B141: Grad Novi Pazar | C141: Građevinska dozvola | D141: Donošenje rešenja | E141: Republička administrativna taksa | G141: 800 | H141: 800 | I141: 840-742221843-57 | J141: Budžet Republike Srbije | K141: 97 | L141: 67 075 | M141: Zakon o RAT - tarifni broj 165
B142: Grad Novi Pazar | C142: Rešenje o odobrenju izvođenja radova po članu 145 Zakona | D142: Podnošenje zahteva | E142: Republička administrativna taksa | G142: 310 | H142: 310 | I142: 840-742221843-57 | J142: Budžet Republike Srbije | K142: 97 | L142: 67 075 | M142: Zakon o RAT - tarifni broj 1
B143: Grad Novi Pazar | C143: Rešenje o odobrenju izvođenja radova po članu 145 Zakona | D143: Podnošenje zahteva | E143: Lokalna administrativna taksa | G143: 2500 | H143: 2500 | I143: 840-742221843-57 | J143: Gradska uprava Novi Pazar | K143: 97 | L143: 67 075 | M143: Odluka o optinskim administrativnim taksama-„Sl.list grada Novog Pazara“ br.11/2015
B144: Grad Novi Pazar | C144: Rešenje o odobrenju izvođenja radova po članu 145 Zakona | D144: Donošenje rešenja | E144: Lokalna administrativna taksa | G144: 350 | H144: 350 | I144: 840-742241843-03 | J144: Gradska uprava Novi Pazar | K144: 97 | L144: 67 075 | M144: Odluka o optinskim administrativnim taksama-„Sl.list grada Novog Pazara“ br.11/2015
B145: Grad Novi Pazar | C145: Rešenje o odobrenju izvođenja radova po članu 145 Zakona | D145: Donošenje rešenja | E145: Republička administrativna taksa | G145: 800 | H145: 800 | I145: 840-742221843-57 | J145: Budžet Republike Srbije | K145: 97 | L145: 67 075 | M145: Zakon o RAT - tarifni broj 165
B146: Grad Novi Pazar | C146: Prijava radova | D146: Podnošenje zahteva | E146: Republička administrativna taksa | G146: 310 | H146: 310 | I146: 840-742221843-57 | J146: Budžet Republike Srbije | K146: 97 | L146: 67 075 | M146: Zakon o RAT - tarifni broj 1
B147: Grad Novi Pazar | C147: Prijava radova | D147: Podnošenje zahteva | E147: Lokalna administrativna taksa | G147: 1500 | H147: 1500 | I147: 840-742241843-03 | J147: Gradska uprava Novi Pazar | K147: 97 | L147: 67 075 | M147: Odluka o optinskim administrativnim taksama-„Sl.list grada Novog Pazara“ br.11/2015
B148: Grad Novi Pazar | C148: Prijava radova | D148: Donošenje rešenja | E148: Lokalna administrativna taksa | G148: 350 | H148: 350 | I148: 840-742241843-03 | J148: Gradska uprava Novi Pazar | K148: 97 | L148: 67 075 | M148: Odluka o optinskim administrativnim taksama-„Sl.list grada Novog Pazara“ br.11/2015
B149: Grad Novi Pazar | C149: Prijava završetka izrade temelja i završetka objekta u konstruktivnom smislu | D149: Podnošenje zahteva | E149: Republička administrativna taksa | G149: =310+1600 -> 1910 | H149: =310+1600 -> 1910 | I149: 840-742221843-57 | J149: Budžet Republike Srbije | K149: 97 | L149: 67 075 | M149: Zakon o RAT - tarifni broj 1 i tarifni broj 164
B150: Grad Novi Pazar | C150: Prijava završetka izrade temelja i završetka objekta u konstruktivnom smislu | D150: Podnošenje zahteva | E150: Lokalna administrativna taksa | G150: 1000 | H150: 1000 | I150: 840-742241843-03 | J150: Gradska uprava Novi Pazar | K150: 97 | L150: 67 075 | M150: Odluka o optinskim administrativnim taksama-„Sl.list grada Novog Pazara“ br.11/2015
B151: Grad Novi Pazar | C151: Prijava završetka izrade temelja i završetka objekta u konstruktivnom smislu | D151: Donošenje rešenja | E151: Lokalna administrativna taksa | G151: 350 | H151: 350 | I151: 840-742241843-03 | J151: Gradska uprava Novi Pazar | K151: 97 | L151: 67 075 | M151: Odluka o optinskim administrativnim taksama-„Sl.list grada Novog Pazara“ br.11/2015
B152: Grad Novi Pazar | C152: Dostavljanje tehničke dokumentacije | D152: Podnošenje zahteva | E152: Republička administrativna taksa | G152: 310 | H152: 310 | I152: 840-742221843-57 | J152: Budžet Republike Srbije | K152: 97 | L152: 67 075 | M152: Zakon o RAT - tarifni broj 1
B153: Grad Novi Pazar | C153: Dostavljanje tehničke dokumentacije | D153: Podnošenje zahteva | E153: Lokalna administrativna taksa | G153: 3000 | H153: 3000 | I153: 840-742241843-03 | J153: Gradska uprava Novi Pazar | K153: 97 | L153: 67 075 | M153: Odluka o optinskim administrativnim taksama-„Sl.list grada Novog Pazara“ br.11/2015
B154: Grad Novi Pazar | C154: Dostavljanje tehničke dokumentacije | D154: Donošenje rešenja | E154: Lokalna administrativna taksa | G154: 350 | H154: 350 | I154: 840-742241843-03 | J154: Gradska uprava Novi Pazar | K154: 97 | L154: 67 075 | M154: Odluka o optinskim administrativnim taksama-„Sl.list grada Novog Pazara“ br.11/2015
B155: Grad Novi Pazar | C155: Upotrebna dozvola | D155: Podnošenje zahteva | E155: Republička administrativna taksa | G155: 310 | H155: 310 | I155: 840-742221843-57 | J155: Budžet Republike Srbije | K155: 97 | L155: 67 075 | M155: Zakon o RAT - tarifni broj 1
B156: Grad Novi Pazar | C156: Upotrebna dozvola | D156: Podnošenje zahteva | E156: Republička administrativna taksa | F156: DA | G156: 0.2% predračunske vrednosti objekta | H156: 0.2% predračunske vrednosti objekta | I156: 840-742221843-57 | J156: Budžet Republike Srbije | K156: 97 | L156: 67 075 | M156: Zakon o RAT - tarifni broj 170
B157: Grad Novi Pazar | C157: Upotrebna dozvola | D157: Podnošenje zahteva | E157: Lokalna administrativna taksa | G157: 1500 | H157: 1500 | I157: 840-742241843-03 | J157: Gradska uprava Novi Pazar | K157: 97 | L157: 67 075 | M157: Odluka o optinskim administrativnim taksama-„Sl.list grada Novog Pazara“ br.11/2015
B158: Grad Novi Pazar | C158: Upotrebna dozvola | D158: Donošenje rešenja | E158: Lokalna administrativna taksa | G158: 350 | H158: 350 | I158: 840-742241843-03 | J158: Gradska uprava Novi Pazar | K158: 97 | L158: 67 075 | M158: Odluka o optinskim administrativnim taksama-„Sl.list grada Novog Pazara“ br.11/2015
B159: Grad Novi Pazar | C159: Priključenje objekta na infrastrukturu | D159: Podnošenje zahteva | E159: Republička administrativna taksa | G159: 310 | H159: 310 | I159: 840-742221843-57 | J159: Budžet Republike Srbije | K159: 97 | L159: 67 075 | M159: Zakon o RAT - tarifni broj 1
B160: Grad Novi Pazar | C160: Priključenje objekta na infrastrukturu | D160: Podnošenje zahteva | E160: Lokalna administrativna taksa | G160: 2000 | H160: 2000 | I160: 840-742241843-03 | J160: Gradska uprava Novi Pazar | K160: 97 | L160: 67 075 | M160: Odluka o optinskim administrativnim taksama-„Sl.list grada Novog Pazara“ br.11/2015
B161: Grad Novi Pazar | C161: Priključenje objekta na infrastrukturu | D161: Donošenje rešenja | E161: Lokalna administrativna taksa | G161: 350 | H161: 350 | I161: 840-742241843-03 | J161: Gradska uprava Novi Pazar | K161: 97 | L161: 67 075 | M161: Odluka o optinskim administrativnim taksama-„Sl.list grada Novog Pazara“ br.11/2015
B162: Grad Novi Sad | C162: Lokacijski uslovi | D162: Podnošenje zahteva | E162: Republička administrativna taksa | G162: 310 | H162: 310 | I162: 840-742221843-57 | J162: Budžet Republike Srbije | K162: 97 | L162: 11-223 | M162: Zakon o RAT - tarifni borj 1
B163: Grad Novi Sad | C163: Lokacijski uslovi | D163: Podnošenje zahteva | E163: Lokalna administrativna taksa | G163: 770 | H163: 770 | I163: 840-742241843-03 | J163: Gradska uprava Novi Sad | K163: 97 | L163: 20-511 | M163: Odluka o gradskim administrativnim taksama – tarifni broj 1
B164: Grad Novi Sad | C164: Lokacijski uslovi | D164: Donošenje rešenja | E164: Lokalna administrativna taksa | G164: 3480 | H164: 3480 | I164: 840-742241843-03 | J164: Gradska uprava Novi Sad | K164: 97 | L164: 20-511 | M164: Odluka o gradskim administrativnim taksama – tarifni broj 25
B165: Grad Novi Sad | C165: Građevinska dozvola | D165: Podnošenje zahteva | E165: Republička administrativna taksa | G165: 310 | H165: 310 | I165: 840-742221843-57 | J165: Budžet Republike Srbije | K165: 97 | L165: 11-223 | M165: Zakon o RAT - tarifni borj 1
B166: Grad Novi Sad | C166: Građevinska dozvola | D166: Podnošenje zahteva | E166: Lokalna administrativna taksa | G166: 290 | H166: 290 | I166: 840-742241843-03 | J166: Gradska uprava Novi Sad | K166: 97 | L166: 20-511 | M166: Odluka o gradskim administrativnim taksama – tarifni broj 1
B167: Grad Novi Sad | C167: Građevinska dozvola | D167: Donošenje rešenja | E167: Lokalna administrativna taksa | F167: DA | G167: 0.2% predračunske vrednosti objekta | H167: 0.2% predračunske vrednosti objekta | I167: 840-742241843-03 | J167: Gradska uprava Novi Sad | K167: 97 | L167: 20-511 | M167: Odluka o gradskim administrativnim taksama – tarifni broj 1
B168: Grad Novi Sad | C168: Građevinska dozvola | D168: Donošenje rešenja | E168: Republička administrativna taksa | G168: 800 | H168: 800 | I168: 840-742221843-57 | J168: Budžet Republike Srbije | K168: 97 | L168: 11-223 | M168: Zakon o RAT - tarifni broj 165
B169: Grad Novi Sad | C169: Građevinska dozvola | D169: Donošenje rešenja | E169: Lokalna administrativna taksa | G169: 770 | H169: 770 | I169: 840-742241843-03 | J169: Gradska uprava Novi Sad | K169: 97 | L169: 20-511 | M169: Odluka o gradskim administrativnim taksama – tarifni broj 25
B170: Grad Novi Sad | C170: Rešenje o odobrenju izvođenja radova po članu 145 Zakona | D170: Podnošenje zahteva | E170: Republička administrativna taksa | G170: 310 | H170: 310 | I170: 840-742221843-57 | J170: Budžet Republike Srbije | K170: 97 | L170: 11-223 | M170: Zakon o RAT - tarifni borj 1
B171: Grad Novi Sad | C171: Rešenje o odobrenju izvođenja radova po članu 145 Zakona | D171: Podnošenje zahteva | E171: Lokalna administrativna taksa | G171: 290 | H171: 290 | I171: 840-742241843-03 | J171: Gradska uprava Novi Sad | K171: 97 | L171: 20-511 | M171: Odluka o gradskim administrativnim taksama – tarifni broj 1
B172: Grad Novi Sad | C172: Rešenje o odobrenju izvođenja radova po članu 145 Zakona | D172: Donošenje rešenja | E172: Lokalna administrativna taksa | F172: DA | G172: 0.1% predračunske vrednosti objekta | H172: 0.1% predračunske vrednosti objekta | I172: 840-742241843-03 | J172: Gradska uprava Novi Sad | K172: 97 | L172: 20-511 | M172: Odluka o gradskim administrativnim taksama – tarifni broj 1
B173: Grad Novi Sad | C173: Rešenje o odobrenju izvođenja radova po članu 145 Zakona | D173: Donošenje rešenja | E173: Republička administrativna taksa | G173: 800 | H173: 0.1% predračunske vrednosti objekta | I173: 840-742221843-57 | J173: Budžet Republike Srbije | K173: 97 | L173: 11-223 | M173: Zakon o RAT - tarifni broj 165
B174: Grad Novi Sad | C174: Rešenje o odobrenju izvođenja radova po članu 145 Zakona | D174: Donošenje rešenja | E174: Lokalna administrativna taksa | G174: 770 | H174: 0.1% predračunske vrednosti objekta | I174: 840-742241843-03 | J174: Gradska uprava Novi Sad | K174: 97 | L174: 20-511 | M174: Odluka o gradskim administrativnim taksama – tarifni broj 25
B175: Grad Novi Sad | C175: Prijava radova | D175: Podnošenje zahteva | E175: Republička administrativna taksa | G175: 310 | H175: 0.1% predračunske vrednosti objekta | I175: 840-742221843-57 | J175: Budžet Republike Srbije | K175: 97 | L175: 11-223 | M175: Zakon o RAT - tarifni broj 1
B176: Grad Novi Sad | C176: Prijava završetka izrade temelja i završetka objekta u konstruktivnom smislu | D176: Podnošenje zahteva | E176: Republička administrativna taksa | G176: =310+1600 -> 1910 | H176: 0.1% predračunske vrednosti objekta | I176: 840-742221843-57 | J176: Budžet Republike Srbije | K176: 97 | L176: 11-223 | M176: Zakon o RAT - tarifni broj 1 i 164
B177: Grad Novi Sad | C177: Prijava završetka izrade temelja i završetka objekta u konstruktivnom smislu | D177: Podnošenje zahteva | E177: Lokalna administrativna taksa | G177: 290 | H177: 0.1% predračunske vrednosti objekta | I177: 840-742241843-03 | J177: Gradska uprava Novi Sad | K177: 97 | L177: 20-511 | M177: Odluka o gradskim administrativnim taksama – tarifni broj 1
B178: Grad Novi Sad | C178: Prijava završetka izrade temelja i završetka objekta u konstruktivnom smislu | D178: Donošenje rešenja | E178: Lokalna administrativna taksa | G178: 770 | H178: 0.1% predračunske vrednosti objekta | I178: 840-742241843-03 | J178: Gradska uprava Novi Sad | K178: 97 | L178: 20-511 | M178: Odluka o gradskim administrativnim taksama – tarifni broj 25
B179: Grad Novi Sad | C179: Dostavljanje tehničke dokumentacije | D179: Podnošenje zahteva | E179: Republička administrativna taksa | G179: 310 | H179: 0.1% predračunske vrednosti objekta | I179: 840-742221843-57 | J179: Budžet Republike Srbije | K179: 97 | L179: 11-223 | M179: Zakon o RAT - tarifni broj 1
B180: Grad Novi Sad | C180: Dostavljanje tehničke dokumentacije | D180: Podnošenje zahteva | E180: Lokalna administrativna taksa | G180: 290 | H180: 0.1% predračunske vrednosti objekta | I180: 840-742241843-03 | J180: Gradska uprava Novi Sad | K180: 97 | L180: 20-511 | M180: Odluka o gradskim administrativnim taksama – tarifni broj 1
B181: Grad Novi Sad | C181: Upotrebna dozvola | D181: Podnošenje zahteva | E181: Republička administrativna taksa | G181: 310 | H181: 0.1% predračunske vrednosti objekta | I181: 840-742221843-57 | J181: Budžet Republike Srbije | K181: 97 | L181: 11-223 | M181: Zakon o RAT - tarifni broj 1
B182: Grad Novi Sad | C182: Upotrebna dozvola | D182: Podnošenje zahteva | E182: Lokalna administrativna taksa | G182: 290 | H182: 0.1% predračunske vrednosti objekta | I182: 840-742241843-03 | J182: Gradska uprava Novi Sad | K182: 97 | L182: 20-511 | M182: Odluka o gradskim administrativnim taksama – tarifni broj 1
B183: Grad Novi Sad | C183: Upotrebna dozvola | D183: Donošenje rešenja | E183: Lokalna administrativna taksa | G183: 770 | H183: 770 | I183: 840-742241843-03 | J183: Gradska uprava Novi Sad | K183: 97 | L183: 20-511 | M183: Odluka o gradskim administrativnim taksama – tarifni broj 25
B184: Grad Novi Sad | C184: Upotrebna dozvola | D184: Donošenje rešenja | E184: Republička administrativna taksa | F184: DA | G184: 0.2% predračunske vrednosti objekta | H184: 0.2% predračunske vrednosti objekta | I184: 840-742221843-57 | J184: Budžet Republike Srbije | K184: 97 | L184: 11-223 | M184: Zakon o RAT - tarifni broj 170
B185: Grad Novi Sad | C185: Upotrebna dozvola | D185: Donošenje rešenja | E185: Lokalna administrativna taksa | F185: DA | G185: 0.1% predračunske vrednosti objekta | H185: 0.1% predračunske vrednosti objekta | I185: 840-742241843-03 | J185: Gradska uprava Novi Sad | K185: 97 | L185: 20-511 | M185: Odluka o gradskim administrativnim taksama – tarifni broj 25
B186: Grad Novi Sad | C186: Priključenje objekta na infrastrukturu | D186: Podnošenje zahteva | E186: Republička administrativna taksa | G186: 310 | H186: 310 | I186: 840-742221843-57 | J186: Budžet Republike Srbije | K186: 97 | L186: 11-223 | M186: Zakon o RAT - tarifni broj 1
B187: Grad Novi Sad | C187: Priključenje objekta na infrastrukturu | D187: Podnošenje zahteva | E187: Lokalna administrativna taksa | G187: 290 | H187: 290 | I187: 840-742241843-03 | J187: Gradska uprava Novi Sad | K187: 97 | L187: 20-511 | M187: Odluka o gradskim administrativnim taksama – tarifni broj 1
B188: Grad Pančevo | C188: Lokacijski uslovi | D188: Podnošenje zahteva | E188: Lokalna administrativna taksa | G188: 1087 | H188: 1087 | I188: 840-742241843-03 | J188: Gradska uprava Pančevo | K188: 97 | L188: 02-226 | M188: Obuka o gradskim taksama ("Sl.list grada Pančeva" br. 16/08)
B189: Grad Pančevo | C189: Lokacijski uslovi | D189: Podnošenje zahteva | E189: Lokalna naknada | G189: 6310 | H189: 6310 | I189: 840-742341843-24 | J189: Gradska uprava Pančevo | K189: 97 | L189: 76-226-74234102 | M189: Obuka o gradskim taksama ("Sl.list grada Pančeva" br. 16/08)
B190: Grad Pančevo | C190: Građevinska dozvola | D190: Podnošenje zahteva | E190: Republička administrativna taksa | G190: 310 | H190: 310 | I190: 840-74222843-57 | J190: Budžet Republike Srbije | K190: 97 | L190: 02-226 | M190: Zakon o RAT - tarifni broj 1
B191: Grad Pančevo | C191: Građevinska dozvola | D191: Podnošenje zahteva | E191: Lokalna naknada | G191: 1500 | H191: 1500 | I191: 840-742341843-24 | J191: Gradska uprava Pančevo | K191: 97 | L191: 76-226-74234102 | M191: Obuka o gradskim taksama ("Sl.list grada Pančeva" br. 16/08)
B192: Grad Pančevo | C192: Građevinska dozvola | D192: Donošenje rešenja | E192: Republička administrativna taksa | G192: 800 | H192: 800 | I192: 840-74222843-57 | J192: Budžet Republike Srbije | K192: 97 | L192: 02-226 | M192: Zakon o RAT - tarifni broj 165
B193: Grad Pančevo | C193: Rešenje o odobrenju izvođenja radova po članu 145 Zakona | D193: Podnošenje zahteva | E193: Republička administrativna taksa | G193: 310 | H193: 310 | I193: 840-74222843-57 | J193: Budžet Republike Srbije | K193: 97 | L193: 02-226 | M193: Zakon o RAT - tarifni broj 1
B194: Grad Pančevo | C194: Rešenje o odobrenju izvođenja radova po članu 145 Zakona | D194: Podnošenje zahteva | E194: Lokalna naknada | G194: 1500 | H194: 1500 | I194: 840-742341843-24 | J194: Gradska uprava Pančevo | K194: 97 | L194: 76-226-74234102 | M194: Obuka o gradskim taksama ("Sl.list grada Pančeva" br. 16/08)
B195: Grad Pančevo | C195: Rešenje o odobrenju izvođenja radova po članu 145 Zakona | D195: Donošenje rešenja | E195: Republička administrativna taksa | G195: 800 | H195: 800 | I195: 840-74222843-57 | J195: Budžet Republike Srbije | K195: 97 | L195: 02-226 | M195: Zakon o RAT - tarifni broj 165
B196: Grad Pančevo | C196: Prijava radova | D196: Podnošenje zahteva | E196: Republička administrativna taksa | G196: 310 | H196: 310 | I196: 840-74222843-57 | J196: Budžet Republike Srbije | K196: 97 | L196: 02-226 | M196: Zakon o RAT - tarifni broj 1
B197: Grad Pančevo | C197: Prijava radova | D197: Podnošenje zahteva | E197: Lokalna naknada | G197: 1500 | H197: 1500 | I197: 840-742341843-24 | J197: Gradska uprava Pančevo | K197: 97 | L197: 76-226-74234102 | M197: Obuka o gradskim taksama ("Sl.list grada Pančeva" br. 16/08)
B198: Grad Pančevo | C198: Prijava završetka izrade temelja i završetka objekta u konstruktivnom smislu | D198: Podnošenje zahteva | E198: Republička administrativna taksa | G198: =310+310 -> 620 | H198: =310+310 -> 620 | I198: 840-74222843-57 | J198: Budžet Republike Srbije | K198: 97 | L198: 02-226 | M198: Zakon o RAT - tarifni broj 1 x 2
B199: Grad Pančevo | C199: Prijava završetka izrade temelja i završetka objekta u konstruktivnom smislu | D199: Donošenje rešenja | E199: Republička administrativna taksa | G199: 1600 | H199: 1600 | I199: 840-74222843-57 | J199: Budžet Republike Srbije | K199: 97 | L199: 02-226 | M199: Zakon o RAT - tarifni broj 164
B200: Grad Pančevo | C200: Dostavljanje tehničke dokumentacije | D200: Podnošenje zahteva | E200: Republička administrativna taksa | G200: 310 | H200: 310 | I200: 840-74222843-57 | J200: Budžet Republike Srbije | K200: 97 | L200: 02-226 | M200: Zakon o RAT - tarifni broj 1
B201: Grad Pančevo | C201: Upotrebna dozvola | D201: Podnošenje zahteva | E201: Republička administrativna taksa | G201: 310 | H201: 310 | I201: 840-74222843-57 | J201: Budžet Republike Srbije | K201: 97 | L201: 02-226 | M201: Zakon o RAT - tarifni broj 1
B202: Grad Pančevo | C202: Upotrebna dozvola | D202: Podnošenje zahteva | E202: Lokalna naknada | G202: 1500 | H202: 1500 | I202: 840-742341843-24 | J202: Gradska uprava Pančevo | K202: 97 | L202: 76-226-74234102 | M202: Obuka o gradskim taksama ("Sl.list grada Pančeva" br. 16/08)
B203: Grad Pančevo | C203: Upotrebna dozvola | D203: Donošenje rešenja | E203: Republička administrativna taksa | F203: DA | G203: 0.2% predračunske vrednosti objekta | H203: 0.2% predračunske vrednosti objekta | I203: 840-74222843-57 | J203: Budžet Republike Srbije | K203: 97 | L203: 02-226 | M203: Zakon o RAT - tarifni broj 170
B204: Grad Pančevo | C204: Priključenje objekta na infrastrukturu | D204: Podnošenje zahteva | E204: Republička administrativna taksa | G204: 310 | H204: 310 | I204: 840-74222843-57 | J204: Budžet Republike Srbije | K204: 97 | L204: 02-226 | M204: Zakon o RAT - tarifni broj 1
... 1655 more rows

Sheet Sheet1 (hidden)
D3: Lokacijski uslovi | G3: Građevinska dozvola | J3: Upotrebna dozvola
D4: Row Labels | E4: Sum of Iznos takse Tip objekta 1 | G4: Row Labels | H4: Sum of Iznos takse Tip objekta 1 | J4: Row Labels | K4: Sum of Iznos takse Tip objekta 1 | L4: Count of Da li LS naplaćuje taksu u % iznosu
D5: Grad Beograd | E5: 31608 | G5: Grad Beograd | H5: 1100 | J5: Grad Beograd | K5: 300 | L5: 1
D6: Grad Čačak | E6: 830 | G6: Grad Čačak | H6: 580 | J6: Grad Čačak | K6: 310 | L6: 1
D7: Grad Jagodina | E7: 33310 | G7: Grad Ćuprija ! | H7: 4210 | J7: Grad Jagodina | K7: 1030 | L7: 1
D8: Grad Kikinda | E8: 51830 | G8: Grad Jagodina | H8: 1030 | J8: Grad Kikinda | K8: 310 | L8: 1
D9: Grad Kragujevac | E9: 66520 | G9: Grad Kikinda | H9: 1110 | J9: Grad Kragujevac | K9: 310 | L9: 1
D10: Grad Kruševac | E10: 1130 | G10: Grad Kragujevac | H10: 1110 | J10: Grad Kruševac | K10: 2090 | L10: 1
D11: Grad Leskovac | E11: 101910 | G11: Grad Kraljevo ! | H11: 1070 | J11: Grad Leskovac | K11: 7310 | L11: 1
D12: Grad Loznica | E12: 10310 | G12: Grad Kruševac | H12: 1410 | J12: Grad Loznica | K12: 5830
D13: Grad Niš | E13: 25200 | G13: Grad Leskovac | H13: 1110 | J13: Grad Niš | K13: 310 | L13: 1
D14: Grad Novi Pazar | E14: 3160 | G14: Grad Loznica | H14: 6110 | J14: Grad Novi Pazar | K14: 2160 | L14: 1
D15: Grad Novi Sad | E15: 4560 | G15: Grad Negotin ! | H15: 1070 | J15: Grad Novi Sad | K15: 1370 | L15: 2
D16: Grad Pančevo | E16: 7397 | G16: Grad Niš | H16: 1100 | J16: Grad Pančevo | K16: 1810 | L16: 1
D17: Grad Pirot | E17: 81310 | G17: Grad Novi Pazar | H17: 3960 | J17: Grad Pirot | K17: 2500 | L17: 1
D18: Grad Požarevac | E18: 5800 | G18: Grad Novi Sad | H18: 2170 | J18: Grad Požarevac | K18: 5800
D19: Grad Šabac | E19: 9310 | G19: Grad Pančevo | H19: 2610 | J19: Grad Šabac | K19: 1310 | L19: 1
D20: Grad Smederevo | E20: 5310 | G20: Grad Pirot | H20: 3270 | J20: Grad Smederevo | K20: 1510 | L20: 1
D21: Grad Sombor | E21: 310 | G21: Grad Požarevac | H21: 5800 | J21: Grad Sombor | K21: 310 | L21: 1
D22: Grad Sremska Mitrovica | E22: 50610 | G22: Grad Šabac | H22: 7060 | J22: Grad Sremska Mitrovica | K22: 510 | L22: 1
D23: Grad Subotica | E23: 1853 | G23: Grad Smederevo | H23: 2310 | J23: Grad Subotica | K23: 310 | L23: 1
D24: Grad Užice | E24: 7300 | G24: Grad Sombor | H24: 1110 | J24: Grad Užice | K24: 310 | L24: 1
D25: Grad Vršac | E25: 29310 | G25: Grad Sremska Mitrovica | H25: 1310 | J25: Grad Valjevo | K25: 1289
D26: Grad Zaječar | E26: 8135 | G26: Grad Subotica | H26: 1110 | J26: Grad Vršac | K26: 960 | L26: 1
D27: Grad Zrenjanin | E27: 40830 | G27: Grad Užice | H27: 1140 | J27: Grad Zaječar | K27: 4735
D28: Gradska opština Barajevo | E28: 14316 | G28: Grad Valjevo | H28: 1569 | J28: Grad Zrenjanin | K28: 310 | L28: 1
D29: Gradska opština Lazarevac | E29: 14306 | G29: Grad Vranje ! | H29: 2445 | J29: Gradska opština Barajevo | K29: 1110 | L29: 1
D30: Gradska opština Obrenovac | E30: 14316 | G30: Grad Vršac | H30: 2160 | J30: Gradska opština Čukarica | K30: 830 | L30: 1
D31: Gradska opština Sopot | E31: 14306 | G31: Grad Zaječar | H31: 3535 | J31: Gradska opština Lazarevac | K31: 1070 | L31: 1
D32: Opština Aleksandrovac | E32: 10000 | G32: Grad Zrenjanin | H32: 2110 | J32: Gradska opština Obrenovac | K32: 310 | L32: 2
D33: Opština Alibunar | E33: 4310 | G33: Gradska opština Barajevo | H33: 1110 | J33: Gradska opština Palilula | K33: 310 | L33: 1
D34: Opština Aranđelovac | E34: 15251.5 | G34: Gradska opština Čukarica | H34: 1110 | J34: Gradska opština Savski Venac | K34: 310 | L34: 1
D35: Opština Arilje | E35: 3000 | G35: Gradska opština Grocka ! | H35: 1110 | J35: Gradska opština Sopot | K35: 800 | L35: 1
D36: Opština Babušnica | E36: 370 | G36: Gradska opština Lazarevac | H36: 1070 | J36: Gradska opština Vračar | K36: 300 | L36: 1
D37: Opština Bačka Palanka | E37: 310 | G37: Gradska opština Mladenovac ! | H37: 1410 | J37: Gradska opština Zemun | K37: 310 | L37: 1
D38: Opština Bačka Topola | E38: 310 | G38: Gradska opština Novi Beograd | H38: 1600 | J38: Gradska opština Zvezdara | K38: 310 | L38: 1
D39: Opština Batočina | E39: 8310 | G39: Gradska opština Obrenovac | H39: 1110 | J39: Opština Aleksandrovac | K39: 170 | L39: 1
D40: Opština Bečej | E40: 1660 | G40: Gradska opština Palilula | H40: 1110 | J40: Opština Alibunar | K40: 310 | L40: 1
D41: Opština Bela Palanka | E41: 430 | G41: Gradska opština Rakovica ! | H41: 1370 | J41: Opština Aranđelovac | K41: 0 | L41: 1
D42: Opština Beočin | E42: 2310 | G42: Gradska opština Savski Venac | H42: 1110 | J42: Opština Arilje | K42: 300 | L42: 1
D43: Opština Blace | E43: 100800 | G43: Gradska opština Sopot | H43: 800 | J43: Opština Babušnica | K43: 1870 | L43: 1
D44: Opština Bogatić | E44: 10260 | G44: Gradska opština Stari Grad ! | H44: 1110 | J44: Opština Bačka Palanka | K44: 710 | L44: 1
D45: Opština Boljevac | E45: 16120 | G45: Gradska opština Surčin ! | H45: 2261 | J45: Opština Batočina | K45: 6310 | L45: 1
D46: Opština Bosilegrad | E46: 5390 | G46: Gradska opština Voždovac ! | H46: 800 | J46: Opština Bečej | K46: 660 | L46: 2
D47: Opština Brus | E47: 11580 | G47: Gradska opština Vračar | H47: 1100 | J47: Opština Bela Palanka | K47: 60430 | L47: 1
D48: Opština Bujanovac | E48: 3610 | G48: Gradska opština Zemun | H48: 1110 | J48: Opština Blace | K48: 2430 | L48: 1
D49: Opština Čajetina | E49: 25620 | G49: Gradska opština Zvezdara | H49: 1110 | J49: Opština Bogatić | K49: 3490 | L49: 1
D50: Opština Ćićevac | E50: 4910 | G50: Opština Ada ! | H50: 1110 | J50: Opština Bosilegrad | K50: 680 | L50: 1
D51: Opština Čoka | E51: 300 | G51: Opština Aleksandrovac | H51: 970 | J51: Opština Brus | K51: 1380
D52: Opština Crna Trava | E52: 30310 | G52: Opština Aleksinac ! | H52: 770 | J52: Opština Bujanovac | K52: 45510 | L52: 1
D53: Opština Despotovac | E53: 3960 | G53: Opština Alibunar | H53: 1110 | J53: Opština Čajetina | K53: 50830 | L53: 1
D54: Opština Dimitrovgrad | E54: 1545 | G54: Opština Apatin ! | H54: 1110 | J54: Opština Ćićevac | K54: 3100 | L54: 1
D55: Opština Doljevac | E55: 310 | G55: Opština Aranđelovac | H55: 1110 | J55: Opština Čoka | K55: 300 | L55: 1
D56: Opština Gadžin Han | E56: 1990 | G56: Opština Arilje | H56: 1070 | J56: Opština Crna Trava | K56: 310 | L56: 1
D57: Opština Golubac | E57: 15460 | G57: Opština Babušnica | H57: 2370 | J57: Opština Despotovac | K57: 1980
D58: Opština Gornji Milanovac | E58: 900 | G58: Opština Bač ! | H58: 1080 | J58: Opština Dimitrovgrad | K58: 1239 | L58: 1
D59: Opština Irig | E59: 3830 | G59: Opština Bačka Palanka | H59: 4260 | J59: Opština Doljevac | K59: 830
D60: Opština Ivanjica | E60: 38500 | G60: Opština Bačka Topola | H60: 1410 | J60: Opština Gadžin Han | K60: 2510
D61: Opština Knić | E61: 4380 | G61: Opština Bački Petrovac ! | H61: 1110 | J61: Opština Golubac | K61: 2260 | L61: 1
D62: Opština Knjaževac | E62: 4131 | G62: Opština Bajina Bašta ! | H62: 350 | J62: Opština Gornji Milanovac | K62: 310 | L62: 1
D63: Opština Koceljeva | E63: 6820 | G63: Opština Batočina | H63: 8610 | J63: Opština Irig | K63: 1260
D64: Opština Kosjerić | E64: 80510 | G64: Opština Bečej | H64: 6260 | J64: Opština Ivanjica | K64: 0 | L64: 1
D65: Opština Kovačica | E65: 11920 | G65: Opština Bela Crkva ! | H65: 1080 | J65: Opština Knić | K65: 620 | L65: 1
D66: Opština Kovin | E66: 10078 | G66: Opština Bela Palanka | H66: 2230 | J66: Opština Knjaževac | K66: 0 | L66: 1
D67: Opština Krupanj | E67: 7420 | G67: Opština Beočin | H67: 1110 | J67: Opština Koceljeva | K67: 1300 | L67: 1
D68: Opština Kučevo | E68: 8110 | G68: Opština Blace | H68: 6990 | J68: Opština Kosjerić | K68: 1810
D69: Opština Kula | E69: 2310 | G69: Opština Bogatić | H69: 4290 | J69: Opština Kovačica | K69: 2010 | L69: 1
D70: Opština Kuršumlija | E70: 50310 | G70: Opština Bojnik ! | H70: 300 | J70: Opština Kovin | K70: 8078
D71: Opština Lajkovac | E71: 27010 | G71: Opština Boljevac | H71: 1110 | J71: Opština Krupanj | K71: 1430 | L71: 1
D72: Opština Lebane | E72: 5910 | G72: Opština Bor ! | H72: 1070 | J72: Opština Kučevo | K72: 3110
D73: Opština Ljig | E73: 32000 | G73: Opština Bosilegrad | H73: 5700 | J73: Opština Kula | K73: 830
D74: Opština Lučani | E74: 3530 | G74: Opština Brus | H74: 1660 | J74: Opština Kuršumlija | K74: 4510 | L74: 1
D75: Opština Malo Crniće | E75: 2580 | G75: Opština Bujanovac | H75: 64520 | J75: Opština Lajkovac | K75: 558 | L75: 1
D76: Opština Medveđa | E76: 2710 | G76: Opština Čajetina | H76: 36100 | J76: Opština Lebane | K76: 0 | L76: 1
D77: Opština Merošina | E77: 1630 | G77: Opština Ćićevac | H77: 5400 | J77: Opština Ljig | K77: 6000 | L77: 1
D78: Opština Mionica | E78: 10500 | G78: Opština Čoka | H78: 300 | J78: Opština Lučani | K78: 2510 | L78: 1
D79: Opština Nova Crnja | E79: 310 | G79: Opština Crna Trava | H79: 1110 | J79: Opština Malo Crniće | K79: 9190
D80: Opština Nova Varoš | E80: 9270 | G80: Opština Despotovac | H80: 2260 | J80: Opština Medveđa | K80: 2310 | L80: 1
D81: Opština Novi Bečej | E81: 45830 | G81: Opština Dimitrovgrad | H81: 2035 | J81: Opština Merošina | K81: 5480
D82: Opština Novi Kneževac | E82: 650 | G82: Opština Doljevac | H82: 1110 | J82: Opština Mionica | K82: 1810 | L82: 1
D83: Opština Odžaci | E83: 4300 | G83: Opština Gadžin Han | H83: 2790 | J83: Opština Nova Crnja | K83: 310 | L83: 1
D84: Opština Opovo | E84: 5600 | G84: Opština Golubac | H84: 3060 | J84: Opština Nova Varoš | K84: 2200
D85: Opština Pećinci | E85: 30996 | G85: Opština Gornji Milanovac | H85: 67800 | J85: Opština Novi Bečej | K85: 1010 | L85: 1
D86: Opština Petrovac na Mlavi | E86: 10610 | G86: Opština Inđija ! | H86: 10230 | J86: Opština Novi Kneževac | K86: 2350
D87: Opština Plandište | E87: 3150 | G87: Opština Irig | H87: 1260 | J87: Opština Odžaci | K87: 0 | L87: 2
D88: Opština Požega | E88: 42310 | G88: Opština Ivanjica | H88: 800 | J88: Opština Opovo | K88: 300 | L88: 2
D89: Opština Preševo | E89: 10000 | G89: Opština Kanjiža ! | H89: 1100 | J89: Opština Pećinci | K89: 310 | L89: 1
D90: Opština Priboj | E90: 20310 | G90: Opština Kladovo ! | H90: 1420 | J90: Opština Petrovac na Mlavi | K90: 310 | L90: 1
D91: Opština Prijepolje | E91: 310 | G91: Opština Knić | H91: 1110 | J91: Opština Plandište | K91: 310 | L91: 1
D92: Opština Rača | E92: 378.8 | G92: Opština Knjaževac | H92: 1110 | J92: Opština Požega | K92: 310 | L92: 1
D93: Opština Ražanj | E93: 6310 | G93: Opština Koceljeva | H93: 4150 | J93: Opština Preševo | K93: 10000 | L93: 1
D94: Opština Rekovac | E94: 15410 | G94: Opština Kosjerić | H94: 1810 | J94: Opština Priboj | K94: 310 | L94: 1
D95: Opština Sečanj | E95: 2390 | G95: Opština Kovačica | H95: 6310 | J95: Opština Prijepolje | K95: 310
D96: Opština Senta | E96: 113148 | G96: Opština Kovin | H96: 8078 | J96: Opština Rača | K96: 5342.8 | L96: 1
D97: Opština Šid | E97: 41910 | G97: Opština Krupanj | H97: 3240 | J97: Opština Ražanj | K97: 3310 | L97: 1
D98: Opština Sjenica | E98: 12310 | G98: Opština Kučevo | H98: 8110 | J98: Opština Rekovac | K98: 1510
D99: Opština Sokobanja | E99: 9078 | G99: Opština Kula | H99: 1110 | J99: Opština Sečanj | K99: 390 | L99: 1
D100: Opština Srbobran | E100: 5122 | G100: Opština Kuršumlija | H100: 5310 | J100: Opština Senta | K100: 553 | L100: 2
D101: Opština Sremski Karlovci | E101: 7310 | G101: Opština Lajkovac | H101: 1358 | J101: Opština Šid | K101: 310 | L101: 1
D102: Opština Stara Pazova | E102: 830 | G102: Opština Lapovo ! | H102: 19070 | J102: Opština Sjenica | K102: 4000 | L102: 1
D103: Opština Surdulica | E103: 5210 | G103: Opština Lebane | H103: 6770 | J103: Opština Sokobanja | K103: 310 | L103: 1
D104: Opština Svrljig | E104: 1110 | G104: Opština Ljig | H104: 4400 | J104: Opština Srbobran | K104: 310 | L104: 1
D105: Opština Temerin | E105: 60310 | G105: Opština Ljubovija ! | H105: 1070 | J105: Opština Sremski Karlovci | K105: 610 | L105: 1
D106: Opština Titel | E106: 5310 | G106: Opština Lučani | H106: 3810 | J106: Opština Stara Pazova | K106: 1610 | L106: 1
D107: Opština Trstenik | E107: 15000 | G107: Opština Majdanpek ! | H107: 385 | J107: Opština Surdulica | K107: 9510 | L107: 1
D108: Opština Velika Plana | E108: 310 | G108: Opština Mali Iđoš ! | H108: 830 | J108: Opština Svrljig | K108: 2810 | L108: 1
D109: Opština Vladičin Han | E109: 2310 | G109: Opština Mali Zvornik ! | H109: 1100 | J109: Opština Temerin | K109: 310 | L109: 1
D110: Opština Vrbas | E110: 30310 | G110: Opština Malo Crniće | H110: 6190 | J110: Opština Titel | K110: 6460 | L110: 1
D111: Opština Žabalj | E111: 7510 | G111: Opština Medveđa | H111: 3510 | J111: Opština Trstenik | K111: 310 | L111: 1
D112: Opština Žabari | E112: 5670 | G112: Opština Merošina | H112: 1260 | J112: Opština Velika Plana | K112: 310 | L112: 1
D113: Opština Žagubica | E113: 1920 | G113: Opština Mionica | H113: 2610 | J113: Opština Vladičin Han | K113: 2410 | L113: 1
D114: Opština Žitorađa | E114: 10310 | G114: Opština Nova Crnja | H114: 1110 | J114: Opština Vrbas | K114: 310 | L114: 1
G115: Opština Nova Varoš | H115: 3070 | J115: Opština Žabalj | K115: 310 | L115: 1
G116: Opština Novi Bečej | H116: 1810 | J116: Opština Žabari | K116: 510 | L116: 2
G117: Opština Novi Kneževac | H117: 4850 | J117: Opština Žagubica | K117: 1410 | L117: 1
G118: Opština Odžaci | H118: 4070 | J118: Opština Žitorađa | K118: 770 | L118: 1
G119: Opština Opovo | H119: 1870
G120: Opština Osečina ! | H120: 770
G121: Opština Paraćin ! | H121: 1110
G122: Opština Pećinci | H122: 1110
G123: Opština Petrovac na Mlavi | H123: 1110
G124: Opština Plandište | H124: 1110
G125: Opština Požega | H125: 1110
G126: Opština Preševo | H126: 10000
G127: Opština Priboj | H127: 1110
G128: Opština Prijepolje | H128: 310
G129: Opština Prokuplje ! | H129: 5710
G130: Opština Rača | H130: 1923.3
G131: Opština Raška ! | H131: 800
G132: Opština Ražanj | H132: 5110
G133: Opština Rekovac | H133: 1510
G134: Opština Ruma ! | H134: 1110
G135: Opština Sečanj | H135: 2190
G136: Opština Senta | H136: 1353
G137: Opština Šid | H137: 1070
G138: Opština Sjenica | H138: 3800
G139: Opština Smederevska Palanka ! | H139: 1070
G140: Opština Sokobanja | H140: 1110
G141: Opština Srbobran | H141: 1110
G142: Opština Sremski Karlovci | H142: 7110
G143: Opština Stara Pazova | H143: 1410
G144: Opština Surdulica | H144: 5700
G145: Opština Svilajnac ! | H145: 1110
G146: Opština Svrljig | H146: 930
G147: Opština Temerin | H147: 1320
G148: Opština Titel | H148: 7260
G149: Opština Topola ! | H149: 1110
G150: Opština Trgovište ! | H150: 770
G151: Opština Trstenik | H151: 1320
G152: Opština Tutin ! | H152: 1110
G153: Opština Ub ! | H153: 1110
G154: Opština Varvarin ! | H154: 300
G155: Opština Velika Plana | H155: 1110
G156: Opština Veliko Gradište ! | H156: 1070
G157: Opština Vladičin Han | H157: 3210
G158: Opština Vladimirci ! | H158: 19564
G159: Opština Vlasotince ! | H159: 4710
G160: Opština Vrbas | H160: 1110
G161: Opština Vrnjačka Banja ! | H161: 1581
G162: Opština Žabalj | H162: 1310
G163: Opština Žabari | H163: 2110
G164: Opština Žagubica | H164: 2010
G165: Opština Žitište ! | H165: 20800
G166: Opština Žitorađa | H166: 1260
